Publisher Label,Publisher URI,"Supplier","Net Amount (£)","Organisational Unit","Merchant Category Code","Purpose","Payment Date"
"Wolverhampton City Council","http://opendatacommunities.org/id/metropolitan-district-council/wolverhampton","POST OFFICE COUNTER","29.75","Intensive Family Support Team","9402","Comms - Postage","30/09/2016"
"Wolverhampton City Council","http://opendatacommunities.org/id/metropolitan-district-council/wolverhampton","Trainline.com Ltd","126.07","Art Gallery","4112","Public Transport","30/09/2016"
"Wolverhampton City Council","http://opendatacommunities.org/id/metropolitan-district-council/wolverhampton","ASDA SUPERSTORE","4.65","Headstart","5411","Provisions (Not for resale)","30/09/2016"
"Wolverhampton City Council","http://opendatacommunities.org/id/metropolitan-district-council/wolverhampton","AMAZON UK RETAIL AMAZO","10.83","Headstart","5999","Equipment - Purchase","30/09/2016"
"Wolverhampton City Council","http://opendatacommunities.org/id/metropolitan-district-council/wolverhampton","WOLVERHAMPTON CC","3.33","Headstart","7523","Car Allowances","30/09/2016"
"Wolverhampton City Council","http://opendatacommunities.org/id/metropolitan-district-council/wolverhampton","WOLVES FC","14.99","Archives","7997","Books","30/09/2016"
"Wolverhampton City Council","http://opendatacommunities.org/id/metropolitan-district-council/wolverhampton","CUMMINGS BROTHERS LOCK","35.00","Cleaning of Buildings - General","7399","Equipment - Purchase","30/09/2016"
"Wolverhampton City Council","http://opendatacommunities.org/id/metropolitan-district-council/wolverhampton","Trainline.com Ltd","55.65","Private Sector Housing","4112","Public Transport","30/09/2016"
"Wolverhampton City Council","http://opendatacommunities.org/id/metropolitan-district-council/wolverhampton","THE MOUNT HOTEL","626.08","City Marketing (Place)","7011","Catering","30/09/2016"
"Wolverhampton City Council","http://opendatacommunities.org/id/metropolitan-district-council/wolverhampton","TESCO STORES 5194","77.83","Towers Outdoor Education Centre","5411","Provisions (Not for resale)","30/09/2016"
"Wolverhampton City Council","http://opendatacommunities.org/id/metropolitan-district-council/wolverhampton","ARGOS RETAIL GROUP","507.94","Learning Technologies","5310","Equipment - Purchase","30/09/2016"
"Wolverhampton City Council","http://opendatacommunities.org/id/metropolitan-district-council/wolverhampton","Amazon UK Marketplace","49.72","Learning Technologies","5942","Books","30/09/2016"
"Wolverhampton City Council","http://opendatacommunities.org/id/metropolitan-district-council/wolverhampton","SQUARESPACE INC.","171.00","Technical Support","7372","Computing - Purchase of Software","30/09/2016"
"Wolverhampton City Council","http://opendatacommunities.org/id/metropolitan-district-council/wolverhampton","Trainline.com Ltd","113.73","Inclusion Support","4112","Public Transport","30/09/2016"
"Wolverhampton City Council","http://opendatacommunities.org/id/metropolitan-district-council/wolverhampton","Trainline.com Ltd","284.07","Civic Halls Non Direct Management A/C","4112","Public Transport","30/09/2016"
"Wolverhampton City Council","http://opendatacommunities.org/id/metropolitan-district-council/wolverhampton","TRAINING COMPANY","159.00","Central Training","8299","Training Expenses","30/09/2016"
"Wolverhampton City Council","http://opendatacommunities.org/id/metropolitan-district-council/wolverhampton","WAITROSE 696","30.72","EIP Locality 3","5411","Provisions (Not for resale)","30/09/2016"
"Wolverhampton City Council","http://opendatacommunities.org/id/metropolitan-district-council/wolverhampton","WOLVES CC","80.00","CIN/CP S17 SW Unit - Area 4","9399","Services - Fees and Charges","30/09/2016"
"Wolverhampton City Council","http://opendatacommunities.org/id/metropolitan-district-council/wolverhampton","KIDDICARE","90.82","CIN/CP S17 SW Unit - Area 4","5719","Equipment - Purchase","30/09/2016"
"Wolverhampton City Council","http://opendatacommunities.org/id/metropolitan-district-council/wolverhampton","TFM FARM & COUNTRY SUP","103.25","Northicote Farm","5399","Equipment - Purchase","30/09/2016"
"Wolverhampton City Council","http://opendatacommunities.org/id/metropolitan-district-council/wolverhampton","STAFFORDSHIRE COUNTY C","20.00","Physical & Sensory Disabilities Mgmt","9399","Services - Fees and Charges","30/09/2016"
"Wolverhampton City Council","http://opendatacommunities.org/id/metropolitan-district-council/wolverhampton","HOME BARGAINS","3.33","Cemeteries","5251","Equipment - Purchase","30/09/2016"
"Wolverhampton City Council","http://opendatacommunities.org/id/metropolitan-district-council/wolverhampton","UNTOUCHABLES","8.33","Cemeteries","5231","Materials","30/09/2016"
"Wolverhampton City Council","http://opendatacommunities.org/id/metropolitan-district-council/wolverhampton","POST OFFICE COUNTER","39.60","Management & Administration","9402","Comms - Postage","30/09/2016"
"Wolverhampton City Council","http://opendatacommunities.org/id/metropolitan-district-council/wolverhampton","HILTON","375.00","Delivery & OCE Development","3504","Conference Expenses","30/09/2016"
"Wolverhampton City Council","http://opendatacommunities.org/id/metropolitan-district-council/wolverhampton","RS COMPONENTS","110.64","Art Gallery","5065","Equipment - R & M","30/09/2016"
"Wolverhampton City Council","http://opendatacommunities.org/id/metropolitan-district-council/wolverhampton","VODAFONE","49.17","Healthy Lifestyles Team","4814","Comms - Mobile Telephones","30/09/2016"
"Wolverhampton City Council","http://opendatacommunities.org/id/metropolitan-district-council/wolverhampton","WWW.MDNSUPPLIES.CO.UK","62.90","Civic Centre","5085","Equipment - Purchase","29/09/2016"
"Wolverhampton City Council","http://opendatacommunities.org/id/metropolitan-district-council/wolverhampton","POSTURITE (UK) LTD","95.45","Strategic Financial Services","5021","Furniture","29/09/2016"
"Wolverhampton City Council","http://opendatacommunities.org/id/metropolitan-district-council/wolverhampton","DEBENHAMSELECTRIC","714.17","Electoral Registration","5734","Computing - Purchase of Software","29/09/2016"
"Wolverhampton City Council","http://opendatacommunities.org/id/metropolitan-district-council/wolverhampton","LOYD WEDNESFIELD WOLVE","200.00","EIP Locality 8","6011","Equipment - Purchase","29/09/2016"
"Wolverhampton City Council","http://opendatacommunities.org/id/metropolitan-district-council/wolverhampton","AMAZON UK RETAIL AMAZO","65.90","Headstart","5999","Equipment - Purchase","29/09/2016"
"Wolverhampton City Council","http://opendatacommunities.org/id/metropolitan-district-council/wolverhampton","AMAZON UK RETAIL AMAZO","25.83","Headstart","5999","Equipment - Purchase","29/09/2016"
"Wolverhampton City Council","http://opendatacommunities.org/id/metropolitan-district-council/wolverhampton","WEST COAST TRAINS","17.20","City Direct","4112","Public Transport","29/09/2016"
"Wolverhampton City Council","http://opendatacommunities.org/id/metropolitan-district-council/wolverhampton","NAMESCO","6.99","Mayoral Expenses","4816","Computing - Purchase of Software","29/09/2016"
"Wolverhampton City Council","http://opendatacommunities.org/id/metropolitan-district-council/wolverhampton","Trainline.com Ltd","51.60","Strategic Asset Management - General","4112","Public Transport","29/09/2016"
"Wolverhampton City Council","http://opendatacommunities.org/id/metropolitan-district-council/wolverhampton","METRO INN","54.00","Adoption and Residence Team & Allowances","5812","Accommodation Costs","29/09/2016"
"Wolverhampton City Council","http://opendatacommunities.org/id/metropolitan-district-council/wolverhampton","METRO INNS WALSALL","238.00","Adoption and Residence Team & Allowances","7011","Accommodation Costs","29/09/2016"
"Wolverhampton City Council","http://opendatacommunities.org/id/metropolitan-district-council/wolverhampton","SCREWFIX DIRECT LT","21.57","Bilston Town Hall","5211","Cleaning Supplies and Materials","29/09/2016"
"Wolverhampton City Council","http://opendatacommunities.org/id/metropolitan-district-council/wolverhampton","CARVER/WOLVERHAMPTON/L","75.73","Bilston Town Hall","5211","Cleaning Supplies and Materials","29/09/2016"
"Wolverhampton City Council","http://opendatacommunities.org/id/metropolitan-district-council/wolverhampton","VERSAPAK","218.45","Catering Overhead Account","8999","Equipment - Purchase","29/09/2016"
"Wolverhampton City Council","http://opendatacommunities.org/id/metropolitan-district-council/wolverhampton","Amazon UK Marketplace","45.97","Parking Enforcement","5942","Equipment - Purchase","29/09/2016"
"Wolverhampton City Council","http://opendatacommunities.org/id/metropolitan-district-council/wolverhampton","NCS VUE CITB HS&E REV","43.80","Head of Projects and Works","8299","Training Expenses","29/09/2016"
"Wolverhampton City Council","http://opendatacommunities.org/id/metropolitan-district-council/wolverhampton","WWW.DILYSJONES.CO.UK","292.50","Central Training","8999","Training Expenses","29/09/2016"
"Wolverhampton City Council","http://opendatacommunities.org/id/metropolitan-district-council/wolverhampton","MBL SEMINARS","120.00","Legal Services","8299","Training Expenses","29/09/2016"
"Wolverhampton City Council","http://opendatacommunities.org/id/metropolitan-district-council/wolverhampton","SAINSBURYS LOC4471","5.20","Benefits","5411","Provisions (Not for resale)","29/09/2016"
"Wolverhampton City Council","http://opendatacommunities.org/id/metropolitan-district-council/wolverhampton","THE NEW BRIDGE GUEST H","500.00","CIN/CP S17 SW Unit - Area 8","7011","Services - Supplies & Services to users","29/09/2016"
"Wolverhampton City Council","http://opendatacommunities.org/id/metropolitan-district-council/wolverhampton","PARCELFORCE WORLDWIDE","9.89","Craft Project Development","4214","Comms - Postage","29/09/2016"
"Wolverhampton City Council","http://opendatacommunities.org/id/metropolitan-district-council/wolverhampton","PIXELS (UK) LTD","1026.12","Maintenance & Technical Materials","5732","Equipment - Purchase","29/09/2016"
"Wolverhampton City Council","http://opendatacommunities.org/id/metropolitan-district-council/wolverhampton","AMAZON UK RETAIL AMAZO","49.49","EIP Locality 1","5999","Equipment - Purchase","29/09/2016"
"Wolverhampton City Council","http://opendatacommunities.org/id/metropolitan-district-council/wolverhampton","SOUTH STREET-CHAMBERS","200.50","LAC Transitions Team","8999","Client Allowances","29/09/2016"
"Wolverhampton City Council","http://opendatacommunities.org/id/metropolitan-district-council/wolverhampton","Trainline.com Ltd","58.14","LAC Education Team (LACE)","4112","Public Transport","29/09/2016"
"Wolverhampton City Council","http://opendatacommunities.org/id/metropolitan-district-council/wolverhampton","THE MAKATON CHARIT","60.00","Learning Technologies","8299","Training Expenses","29/09/2016"
"Wolverhampton City Council","http://opendatacommunities.org/id/metropolitan-district-council/wolverhampton","Amazon UK Marketplace","65.99","Learning Technologies","5942","Computing - Purchase of Hardware","29/09/2016"
"Wolverhampton City Council","http://opendatacommunities.org/id/metropolitan-district-council/wolverhampton","THE CONSORTIUM/WMS","415.98","EIP Locality 3","5968","Equipment - Purchase","29/09/2016"
"Wolverhampton City Council","http://opendatacommunities.org/id/metropolitan-district-council/wolverhampton","WOLVERHAMPTON ART","6.30","Art Galleries - Schools Art SLA Service","8299","Catering","29/09/2016"
"Wolverhampton City Council","http://opendatacommunities.org/id/metropolitan-district-council/wolverhampton","WOLVERHAMPTON ART","18.33","Art Gallery","8299","Training Expenses","29/09/2016"
"Wolverhampton City Council","http://opendatacommunities.org/id/metropolitan-district-council/wolverhampton","FIRSTAID4LESS.CO.UK","24.85","Inclusion Support","5999","Equipment - Purchase","29/09/2016"
"Wolverhampton City Council","http://opendatacommunities.org/id/metropolitan-district-council/wolverhampton","PAYPAL  INSIDERMEDI","70.00","Strategic Director Place","5942","Subscriptions","29/09/2016"
"Wolverhampton City Council","http://opendatacommunities.org/id/metropolitan-district-council/wolverhampton","ARGOS LTD","335.78","LAC Transitions Team","5310","Client Allowances","29/09/2016"
"Wolverhampton City Council","http://opendatacommunities.org/id/metropolitan-district-council/wolverhampton","ITUNES.COM/BILL","0.79","Strategic ICTS (ICT Serv Budget)","5735","Computing - Purchase of Software","29/09/2016"
"Wolverhampton City Council","http://opendatacommunities.org/id/metropolitan-district-council/wolverhampton","ARGOS LTD","484.83","LAC Transitions Team","5310","Client Allowances","29/09/2016"
"Wolverhampton City Council","http://opendatacommunities.org/id/metropolitan-district-council/wolverhampton","CURRYS ONLINE","100.82","Learning Disabilities Management","5732","Equipment - Purchase","28/09/2016"
"Wolverhampton City Council","http://opendatacommunities.org/id/metropolitan-district-council/wolverhampton","Trainline.com Ltd","56.00","LAC Transitions Team","4112","Subsistence","28/09/2016"
"Wolverhampton City Council","http://opendatacommunities.org/id/metropolitan-district-council/wolverhampton","TESCO STORES 5194","287.04","Towers Outdoor Education Centre","5411","Provisions (Not for resale)","28/09/2016"
"Wolverhampton City Council","http://opendatacommunities.org/id/metropolitan-district-council/wolverhampton","WWW.VMSECURE.CO.UK","110.00","Technical Support","5046","Equipment - Purchase","28/09/2016"
"Wolverhampton City Council","http://opendatacommunities.org/id/metropolitan-district-council/wolverhampton","WWW.THEPLASTICCARDFACT","97.00","Technical Support","2741","Publications","28/09/2016"
"Wolverhampton City Council","http://opendatacommunities.org/id/metropolitan-district-council/wolverhampton","HUGHES","194.01","EIP Locality 3","5732","Financial Assistance In Exceptional Circ","28/09/2016"
"Wolverhampton City Council","http://opendatacommunities.org/id/metropolitan-district-council/wolverhampton","ASDA HOME SHOPPING","-3.45","Ernest Bold Court","5411","Provisions (Not for resale)","28/09/2016"
"Wolverhampton City Council","http://opendatacommunities.org/id/metropolitan-district-council/wolverhampton","NOTEMACHINE","240.00","CIN/CP S17 SW Unit - Area 6","6011","Financial Assistance In Exceptional Circ","28/09/2016"
"Wolverhampton City Council","http://opendatacommunities.org/id/metropolitan-district-council/wolverhampton","VIRGIN ATLANTIC","340.00","City Marketing (Place)","3144","Public Transport","28/09/2016"
"Wolverhampton City Council","http://opendatacommunities.org/id/metropolitan-district-council/wolverhampton","THE RED HOUSE","49.98","European Liaison","5611","Clothing / Uniforms","28/09/2016"
"Wolverhampton City Council","http://opendatacommunities.org/id/metropolitan-district-council/wolverhampton","EB  A MASTERCLASS IN A","180.00","Headstart","7399","Equipment - Purchase","28/09/2016"
"Wolverhampton City Council","http://opendatacommunities.org/id/metropolitan-district-council/wolverhampton","EB  A MASTERCLASS IN A","180.00","Headstart","7399","Equipment - Purchase","28/09/2016"
"Wolverhampton City Council","http://opendatacommunities.org/id/metropolitan-district-council/wolverhampton","Amazon EU","10.98","Headstart","5969","Equipment - Purchase","28/09/2016"
"Wolverhampton City Council","http://opendatacommunities.org/id/metropolitan-district-council/wolverhampton","GOLD SUPERSTORE","30.60","Headstart","5251","Equipment - Purchase","28/09/2016"
"Wolverhampton City Council","http://opendatacommunities.org/id/metropolitan-district-council/wolverhampton","GOLD SUPERSTORE","28.40","Headstart","5251","Equipment - Purchase","28/09/2016"
"Wolverhampton City Council","http://opendatacommunities.org/id/metropolitan-district-council/wolverhampton","ROYAL CARPETS","116.67","LAC Transitions Team","5713","Independant Living Allowance","28/09/2016"
"Wolverhampton City Council","http://opendatacommunities.org/id/metropolitan-district-council/wolverhampton","NAMESCO","34.97","City Direct","4816","Computing - Purchase of Software","28/09/2016"
"Wolverhampton City Council","http://opendatacommunities.org/id/metropolitan-district-council/wolverhampton","CURRYS S/S","441.96","Civic Halls Non Direct Management A/C","5732","Equipment - Purchase","28/09/2016"
"Wolverhampton City Council","http://opendatacommunities.org/id/metropolitan-district-council/wolverhampton","NCS VUE CITB HS&E REV","43.80","Head of Projects and Works","8299","Training Expenses","28/09/2016"
"Wolverhampton City Council","http://opendatacommunities.org/id/metropolitan-district-council/wolverhampton","PAYPAL  BUNZLRETAIL","71.96","Ernest Bold Court","5047","Services - Professional Fees","28/09/2016"
"Wolverhampton City Council","http://opendatacommunities.org/id/metropolitan-district-council/wolverhampton","TRAINLINE","23.10","Safeguarding Admin Resource","4112","Public Transport","28/09/2016"
"Wolverhampton City Council","http://opendatacommunities.org/id/metropolitan-district-council/wolverhampton","CUMMINGS BROTHERS LOCK","3.33","Hickman Avenue Depot","7399","R&M - Departmental planned (external)","28/09/2016"
"Wolverhampton City Council","http://opendatacommunities.org/id/metropolitan-district-council/wolverhampton","Amazon UK Marketplace","53.64","EIP Locality 1","5942","Computing - Purchase of Hardware","28/09/2016"
"Wolverhampton City Council","http://opendatacommunities.org/id/metropolitan-district-council/wolverhampton","Amazon UK Marketplace","129.50","EIP Locality 2","5942","Grant Payments","28/09/2016"
"Wolverhampton City Council","http://opendatacommunities.org/id/metropolitan-district-council/wolverhampton","TRAINLINE","8.41","Early Years & Universal Service","4112","Public Transport","28/09/2016"
"Wolverhampton City Council","http://opendatacommunities.org/id/metropolitan-district-council/wolverhampton","APAC LTD","130.00","European Liaison","8299","Financial Assistance In Exceptional Circ","28/09/2016"
"Wolverhampton City Council","http://opendatacommunities.org/id/metropolitan-district-council/wolverhampton","G & M HALE LTD","88.10","Creative Studies Delivery Area","5992","Materials for resale","28/09/2016"
"Wolverhampton City Council","http://opendatacommunities.org/id/metropolitan-district-council/wolverhampton","G & M HALE LTD","125.20","Discretionary Fund","5992","Materials","28/09/2016"
"Wolverhampton City Council","http://opendatacommunities.org/id/metropolitan-district-council/wolverhampton","RADISSION BLU EDW","285.00","School Improvement","7011","Services - Supplies & Services to users","28/09/2016"
"Wolverhampton City Council","http://opendatacommunities.org/id/metropolitan-district-council/wolverhampton","SUITES AND BEDS","125.00","EIP Locality 3","5712","Equipment - Purchase","28/09/2016"
"Wolverhampton City Council","http://opendatacommunities.org/id/metropolitan-district-council/wolverhampton","SUITES AND BEDS","120.83","EIP Locality 3","5712","Equipment - Purchase","28/09/2016"
"Wolverhampton City Council","http://opendatacommunities.org/id/metropolitan-district-council/wolverhampton","TIMPSON LTD","13.33","Revenues","7251","Fixtures and Fittings - R&M","28/09/2016"
"Wolverhampton City Council","http://opendatacommunities.org/id/metropolitan-district-council/wolverhampton","SAINSBURYS 2040","25.90","Duke Street Bungalows","5411","Provisions (Not for resale)","28/09/2016"
"Wolverhampton City Council","http://opendatacommunities.org/id/metropolitan-district-council/wolverhampton","POST OFFICE COUNTER","8.90","Adoption and Residence Team & Allowances","9402","Comms - Postage","28/09/2016"
"Wolverhampton City Council","http://opendatacommunities.org/id/metropolitan-district-council/wolverhampton","REGISTRARS OFFICE","20.00","Adoption and Residence Team & Allowances","8299","Services - Fees and Charges","28/09/2016"
"Wolverhampton City Council","http://opendatacommunities.org/id/metropolitan-district-council/wolverhampton","NOTEMACHINE","250.00","CIN/CP S17 SW Unit - Area 6","6011","Financial Assistance In Exceptional Circ","28/09/2016"
"Wolverhampton City Council","http://opendatacommunities.org/id/metropolitan-district-council/wolverhampton","Trainline.com Ltd","21.00","Planning","4112","Public Transport","28/09/2016"
"Wolverhampton City Council","http://opendatacommunities.org/id/metropolitan-district-council/wolverhampton","Amazon UK Marketplace","3.38","Members Expenses","5942","Equipment - Purchase","28/09/2016"
"Wolverhampton City Council","http://opendatacommunities.org/id/metropolitan-district-council/wolverhampton","Amazon UK Marketplace","18.30","Members Expenses","5942","Equipment - Purchase","28/09/2016"
"Wolverhampton City Council","http://opendatacommunities.org/id/metropolitan-district-council/wolverhampton","ASDA HOME SHOPPING","-0.24","Ernest Bold Court","5411","Provisions (Not for resale)","27/09/2016"
"Wolverhampton City Council","http://opendatacommunities.org/id/metropolitan-district-council/wolverhampton","ASDA HOME SHOPPING","48.19","Ernest Bold Court","5411","Provisions (Not for resale)","27/09/2016"
"Wolverhampton City Council","http://opendatacommunities.org/id/metropolitan-district-council/wolverhampton","Trainline.com Ltd","75.89","Inclusion Support","4112","Public Transport","27/09/2016"
"Wolverhampton City Council","http://opendatacommunities.org/id/metropolitan-district-council/wolverhampton","VIRGIN ATLANTIC","3210.39","City Marketing (Place)","3144","Public Transport","27/09/2016"
"Wolverhampton City Council","http://opendatacommunities.org/id/metropolitan-district-council/wolverhampton","VIRGIN ATLANTIC","5846.20","Service Director City Assets","3144","Public Transport","27/09/2016"
"Wolverhampton City Council","http://opendatacommunities.org/id/metropolitan-district-council/wolverhampton","ROYAL CARPETS","500.00","LAC Transitions Team","5713","Client Allowances","27/09/2016"
"Wolverhampton City Council","http://opendatacommunities.org/id/metropolitan-district-council/wolverhampton","TRFSA   THOMSONREUTERS","148.00","Legal Services","8999","Services - Professional Fees","27/09/2016"
"Wolverhampton City Council","http://opendatacommunities.org/id/metropolitan-district-council/wolverhampton","G & M HALE LTD","35.50","Creative Studies Delivery Area","5992","Materials","27/09/2016"
"Wolverhampton City Council","http://opendatacommunities.org/id/metropolitan-district-council/wolverhampton","CARD FACTORY","14.60","Mayoral Expenses","5947","Hospitality","27/09/2016"
"Wolverhampton City Council","http://opendatacommunities.org/id/metropolitan-district-council/wolverhampton","Trainline.com Ltd","397.30","School Improvement","4112","Public Transport","27/09/2016"
"Wolverhampton City Council","http://opendatacommunities.org/id/metropolitan-district-council/wolverhampton","POST OFFICE COUNTER","192.00","Fostering Team & Allowances","9402","Comms - Postage","27/09/2016"
"Wolverhampton City Council","http://opendatacommunities.org/id/metropolitan-district-council/wolverhampton","WAITROSE 696","23.69","EIP Locality 3","5411","Provisions (Not for resale)","27/09/2016"
"Wolverhampton City Council","http://opendatacommunities.org/id/metropolitan-district-council/wolverhampton","SAINSBURYS","260.00","Physical & Sensory Disabilities Mgmt","6011","Financial Assistance In Exceptional Circ","27/09/2016"
"Wolverhampton City Council","http://opendatacommunities.org/id/metropolitan-district-council/wolverhampton","UNTOUCHABLES","28.75","Cemeteries","5231","Materials","27/09/2016"
"Wolverhampton City Council","http://opendatacommunities.org/id/metropolitan-district-council/wolverhampton","Virgintrains.co.uk","181.40","Adoption and Residence Team & Allowances","4112","Public Transport","27/09/2016"
"Wolverhampton City Council","http://opendatacommunities.org/id/metropolitan-district-council/wolverhampton","Virgintrains.co.uk","191.10","Planning","4112","Public Transport","27/09/2016"
"Wolverhampton City Council","http://opendatacommunities.org/id/metropolitan-district-council/wolverhampton","Trainline.com Ltd","64.10","Planning","4112","Public Transport","27/09/2016"
"Wolverhampton City Council","http://opendatacommunities.org/id/metropolitan-district-council/wolverhampton","NETWORK WEST MIDLANDS","210.00","European Liaison","9399","Financial Assistance In Exceptional Circ","27/09/2016"
"Wolverhampton City Council","http://opendatacommunities.org/id/metropolitan-district-council/wolverhampton","WEST MID TRAVEL","226.85","European Liaison","4131","Financial Assistance In Exceptional Circ","27/09/2016"
"Wolverhampton City Council","http://opendatacommunities.org/id/metropolitan-district-council/wolverhampton","VIDEKONLINE.CO.UK","70.14","Strategic ICTS (ICT Serv Budget)","5722","Equipment - Purchase","27/09/2016"
"Wolverhampton City Council","http://opendatacommunities.org/id/metropolitan-district-council/wolverhampton","TIMPSON LTD","29.17","Central Baths","7251","Equipment - Purchase","27/09/2016"
"Wolverhampton City Council","http://opendatacommunities.org/id/metropolitan-district-council/wolverhampton","WHITMORE REANS GLASS","23.33","Aldersley Leisure Village","5231","Equipment - Purchase","27/09/2016"
"Wolverhampton City Council","http://opendatacommunities.org/id/metropolitan-district-council/wolverhampton","WOLVES CC","234.53","CIN/CP S17 SW Unit - Area 3B","9399","Services - Fees and Charges","27/09/2016"
"Wolverhampton City Council","http://opendatacommunities.org/id/metropolitan-district-council/wolverhampton","TRAINLINE","74.56","City Marketing (Place)","4112","Public Transport","27/09/2016"
"Wolverhampton City Council","http://opendatacommunities.org/id/metropolitan-district-council/wolverhampton","Trainline.com Ltd","195.74","Communications & Marketing - General","4112","Public Transport","27/09/2016"
"Wolverhampton City Council","http://opendatacommunities.org/id/metropolitan-district-council/wolverhampton","W M MORRISONS.COM","101.10","Discretionary Fund","5411","Materials","27/09/2016"
"Wolverhampton City Council","http://opendatacommunities.org/id/metropolitan-district-council/wolverhampton","DINING ROOM","7.69","Headstart","8220","Training Expenses","27/09/2016"
"Wolverhampton City Council","http://opendatacommunities.org/id/metropolitan-district-council/wolverhampton","WOLVERHAMPTON CC","2.50","Headstart","7523","Car Allowances","27/09/2016"
"Wolverhampton City Council","http://opendatacommunities.org/id/metropolitan-district-council/wolverhampton","HOBBY CRAFT LTD","35.42","Education And Access","5970","Materials","27/09/2016"
"Wolverhampton City Council","http://opendatacommunities.org/id/metropolitan-district-council/wolverhampton","Amazon UK Marketplace","9.75","Independent Living Service","5942","Books","27/09/2016"
"Wolverhampton City Council","http://opendatacommunities.org/id/metropolitan-district-council/wolverhampton","Amazon UK Marketplace","18.32","Global Budgets","5942","Books","27/09/2016"
"Wolverhampton City Council","http://opendatacommunities.org/id/metropolitan-district-council/wolverhampton","Trainline.com Ltd","60.69","Art Gallery","4112","Public Transport","27/09/2016"
"Wolverhampton City Council","http://opendatacommunities.org/id/metropolitan-district-council/wolverhampton","AMAZON UK RETAIL AMAZO","21.66","Strategic ICTS (ICT Serv Budget)","5999","Equipment - Purchase","26/09/2016"
"Wolverhampton City Council","http://opendatacommunities.org/id/metropolitan-district-council/wolverhampton","SPORTSDIRECT.COM","22.46","Aldersley Leisure Village","5941","Equipment - Purchase","26/09/2016"
"Wolverhampton City Council","http://opendatacommunities.org/id/metropolitan-district-council/wolverhampton","THE NEW BRIDGE GUEST H","150.00","Emergency Duty Team","7011","Services - Supplies & Services to users","26/09/2016"
"Wolverhampton City Council","http://opendatacommunities.org/id/metropolitan-district-council/wolverhampton","WILKO RETAIL LIMIT","11.75","Service Wide","5722","Equipment - Purchase","26/09/2016"
"Wolverhampton City Council","http://opendatacommunities.org/id/metropolitan-district-council/wolverhampton","SCREWFIX DIRECT","316.66","Service Wide","5211","Materials","26/09/2016"
"Wolverhampton City Council","http://opendatacommunities.org/id/metropolitan-district-council/wolverhampton","CAR PARKING OFFICE","12.50","Work Related Studies","7523","Car Allowances","26/09/2016"
"Wolverhampton City Council","http://opendatacommunities.org/id/metropolitan-district-council/wolverhampton","PRIMARY ICT LTD","74.85","Service Wide","8999","Services - Professional Fees","26/09/2016"
"Wolverhampton City Council","http://opendatacommunities.org/id/metropolitan-district-council/wolverhampton","WWW.TOOLSTATION.COM","108.00","Service Wide","5251","Equipment - Purchase","26/09/2016"
"Wolverhampton City Council","http://opendatacommunities.org/id/metropolitan-district-council/wolverhampton","ARGOS RETAIL GROUP","-6.00","Referral Team CIN - S17","5310","Equipment - Purchase","26/09/2016"
"Wolverhampton City Council","http://opendatacommunities.org/id/metropolitan-district-council/wolverhampton","WWW.COUNTINGMONEY.CO.U","499.00","Service Wide","5085","Equipment - Purchase","26/09/2016"
"Wolverhampton City Council","http://opendatacommunities.org/id/metropolitan-district-council/wolverhampton","WWW.RIAS.ORG.UK","17.58","Head of Projects and Works","5942","Books","26/09/2016"
"Wolverhampton City Council","http://opendatacommunities.org/id/metropolitan-district-council/wolverhampton","ARGOS LTD","20.82","LAC Transitions Team","5310","Client Allowances","26/09/2016"
"Wolverhampton City Council","http://opendatacommunities.org/id/metropolitan-district-council/wolverhampton","THE PORTLAND HOTEL","109.00","Headstart","7011","Services - Supplies & Services to users","26/09/2016"
"Wolverhampton City Council","http://opendatacommunities.org/id/metropolitan-district-council/wolverhampton","ASDA SUPERSTORE","43.56","Headstart","5411","Provisions (Not for resale)","26/09/2016"
"Wolverhampton City Council","http://opendatacommunities.org/id/metropolitan-district-council/wolverhampton","PHOENIX PHARMACY LTD","21.00","LAC Transitions Team","5912","Client Allowances","26/09/2016"
"Wolverhampton City Council","http://opendatacommunities.org/id/metropolitan-district-council/wolverhampton","WOLVERHAMPTON CC","6.50","Headstart","7523","Car Allowances","26/09/2016"
"Wolverhampton City Council","http://opendatacommunities.org/id/metropolitan-district-council/wolverhampton","MAILCHIMP","39.11","City Direct","7399","Equipment - Purchase","26/09/2016"
"Wolverhampton City Council","http://opendatacommunities.org/id/metropolitan-district-council/wolverhampton","AMAZON UK RETAIL AMAZO","73.05","Telecare","5999","Equipment - Purchase","26/09/2016"
"Wolverhampton City Council","http://opendatacommunities.org/id/metropolitan-district-council/wolverhampton","Amazon UK Marketplace","32.97","EIP Locality 1","5942","Direct Work With Children","26/09/2016"
"Wolverhampton City Council","http://opendatacommunities.org/id/metropolitan-district-council/wolverhampton","WOLVERHAMPTON CITY COU","420.25","CIN/CP S17 SW Unit - Area 1","9399","No Recourse to Public Funds","26/09/2016"
"Wolverhampton City Council","http://opendatacommunities.org/id/metropolitan-district-council/wolverhampton","KONICA MINOLTA BUSINES","267.71","Music Support Team","7399","Equipment - R & M","26/09/2016"
"Wolverhampton City Council","http://opendatacommunities.org/id/metropolitan-district-council/wolverhampton","UNTOUCHABLES","24.17","Cemeteries","5231","Materials","26/09/2016"
"Wolverhampton City Council","http://opendatacommunities.org/id/metropolitan-district-council/wolverhampton","ARGOS LTD","18.31","LAC Transitions Team","5310","Client Allowances","26/09/2016"
"Wolverhampton City Council","http://opendatacommunities.org/id/metropolitan-district-council/wolverhampton","ARGOS LTD","47.81","LAC Transitions Team","5310","Client Allowances","26/09/2016"
"Wolverhampton City Council","http://opendatacommunities.org/id/metropolitan-district-council/wolverhampton","ARGOS LTD","360.10","LAC Transitions Team","5310","Client Allowances","26/09/2016"
"Wolverhampton City Council","http://opendatacommunities.org/id/metropolitan-district-council/wolverhampton","Amazon UK Marketplace","116.66","Towers Outdoor Education Centre","5942","Fixtures and Fittings - Purchases","26/09/2016"
"Wolverhampton City Council","http://opendatacommunities.org/id/metropolitan-district-council/wolverhampton","WILKO RETAIL LIMIT","8.33","Duke Street Bungalows","5722","Equipment - Purchase","26/09/2016"
"Wolverhampton City Council","http://opendatacommunities.org/id/metropolitan-district-council/wolverhampton","Amazon UK Marketplace","46.61","Towers Outdoor Education Centre","5942","Equipment - Purchase","26/09/2016"
"Wolverhampton City Council","http://opendatacommunities.org/id/metropolitan-district-council/wolverhampton","WICKES BUILDING","70.48","Technician","5211","Materials","26/09/2016"
"Wolverhampton City Council","http://opendatacommunities.org/id/metropolitan-district-council/wolverhampton","CYNGOR GWYNEDD","407.20","Towers Outdoor Education Centre","9399","Services - Fees and Charges","26/09/2016"
"Wolverhampton City Council","http://opendatacommunities.org/id/metropolitan-district-council/wolverhampton","Amazon UK Marketplace","6.50","Global Budgets","5942","Books","26/09/2016"
"Wolverhampton City Council","http://opendatacommunities.org/id/metropolitan-district-council/wolverhampton","ARGOS RETAIL GROUP","22.45","EIP Locality 4","5310","Financial Assistance In Exceptional Circ","26/09/2016"
"Wolverhampton City Council","http://opendatacommunities.org/id/metropolitan-district-council/wolverhampton","SAINSBURYS (2340)","131.50","EIP Locality 4","5411","Financial Assistance In Exceptional Circ","26/09/2016"
"Wolverhampton City Council","http://opendatacommunities.org/id/metropolitan-district-council/wolverhampton","ASDA HOME SHOPPING","-0.14","Ernest Bold Court","5411","Provisions (Not for resale)","26/09/2016"
"Wolverhampton City Council","http://opendatacommunities.org/id/metropolitan-district-council/wolverhampton","ASDA HOME SHOPPING","92.25","Ernest Bold Court","5411","Provisions (Not for resale)","26/09/2016"
"Wolverhampton City Council","http://opendatacommunities.org/id/metropolitan-district-council/wolverhampton","BARCLAYS BANK PLC","200.00","CIN/CP S17 SW Unit - Area 5","6011","Financial Assistance In Exceptional Circ","26/09/2016"
"Wolverhampton City Council","http://opendatacommunities.org/id/metropolitan-district-council/wolverhampton","BARCLAYS BANK PLC","100.00","CIN/CP S17 SW Unit - Area 5","6011","Financial Assistance In Exceptional Circ","26/09/2016"
"Wolverhampton City Council","http://opendatacommunities.org/id/metropolitan-district-council/wolverhampton","NATWEST QUEEN SQUARE","712.00","City Marketing (Place)","6010","Financial Assistance In Exceptional Circ","26/09/2016"
"Wolverhampton City Council","http://opendatacommunities.org/id/metropolitan-district-council/wolverhampton","BT PAY BY PHONE","66.90","Makers Dozen","4814","Comms - Telephone Call charges","26/09/2016"
"Wolverhampton City Council","http://opendatacommunities.org/id/metropolitan-district-council/wolverhampton","CAPITAL HAIR","388.80","European Liaison","7230","Financial Assistance In Exceptional Circ","23/09/2016"
"Wolverhampton City Council","http://opendatacommunities.org/id/metropolitan-district-council/wolverhampton","SCREWFIX DIRECT","124.99","Service Wide","5211","Equipment - Purchase","23/09/2016"
"Wolverhampton City Council","http://opendatacommunities.org/id/metropolitan-district-council/wolverhampton","TESCO STORES 5362","13.04","EIP Locality 8","5411","Provisions (Not for resale)","23/09/2016"
"Wolverhampton City Council","http://opendatacommunities.org/id/metropolitan-district-council/wolverhampton","Cross Country","149.20","Headstart","4112","Public Transport","23/09/2016"
"Wolverhampton City Council","http://opendatacommunities.org/id/metropolitan-district-council/wolverhampton","B&M RETAIL","14.98","CIN/CP S17 SW Unit - Area 5","5310","Financial Assistance In Exceptional Circ","23/09/2016"
"Wolverhampton City Council","http://opendatacommunities.org/id/metropolitan-district-council/wolverhampton","DUNELM (SOFT FURNISHIN","79.96","CIN/CP S17 SW Unit - Area 5","5714","Financial Assistance In Exceptional Circ","23/09/2016"
"Wolverhampton City Council","http://opendatacommunities.org/id/metropolitan-district-council/wolverhampton","TRAINLINE","82.21","City Marketing (Place)","4112","Public Transport","23/09/2016"
"Wolverhampton City Council","http://opendatacommunities.org/id/metropolitan-district-council/wolverhampton","ROYAL CARPETS","125.00","LAC Transitions Team","5713","Client Allowances","23/09/2016"
"Wolverhampton City Council","http://opendatacommunities.org/id/metropolitan-district-council/wolverhampton","AUDIENCE.UK.COM","75.00","Civic Halls Non Direct Management A/C","8699","Subscriptions","23/09/2016"
"Wolverhampton City Council","http://opendatacommunities.org/id/metropolitan-district-council/wolverhampton","ARGOS RETAIL GROUP","9.99","Art Gallery","5310","Equipment - Purchase","23/09/2016"
"Wolverhampton City Council","http://opendatacommunities.org/id/metropolitan-district-council/wolverhampton","Amazon UK Marketplace","51.96","Art Gallery","5942","Books","23/09/2016"
"Wolverhampton City Council","http://opendatacommunities.org/id/metropolitan-district-council/wolverhampton","SAINSBURYS SACAT (2340","9.80","Mayoral Expenses","5411","Hospitality","23/09/2016"
"Wolverhampton City Council","http://opendatacommunities.org/id/metropolitan-district-council/wolverhampton","SAINSBURYS SACAT 0756","130.00","Mayoral Expenses","5411","Hospitality","23/09/2016"
"Wolverhampton City Council","http://opendatacommunities.org/id/metropolitan-district-council/wolverhampton","Amazon UK Marketplace","3.32","Towers Outdoor Education Centre","5942","Equipment - Purchase","23/09/2016"
"Wolverhampton City Council","http://opendatacommunities.org/id/metropolitan-district-council/wolverhampton","DULUX DEC CENTRE","155.81","Technical Material","5719","Equipment - Purchase","23/09/2016"
"Wolverhampton City Council","http://opendatacommunities.org/id/metropolitan-district-council/wolverhampton","Virgintrains.co.uk","10.15","Members Expenses","4112","Public Transport","23/09/2016"
"Wolverhampton City Council","http://opendatacommunities.org/id/metropolitan-district-council/wolverhampton","WATERSTONES","104.17","Art Galleries - Schools Art SLA Service","5942","Books","23/09/2016"
"Wolverhampton City Council","http://opendatacommunities.org/id/metropolitan-district-council/wolverhampton","ROYAL CARPETS","100.00","LAC Transitions Team","5713","Client Allowances","23/09/2016"
"Wolverhampton City Council","http://opendatacommunities.org/id/metropolitan-district-council/wolverhampton","TRAINLINE","76.24","SEN Sensory Inclusion","4112","Public Transport","23/09/2016"
"Wolverhampton City Council","http://opendatacommunities.org/id/metropolitan-district-council/wolverhampton","WWW.NISBETS.COM","89.86","Towers Outdoor Education Centre","5964","Equipment - Purchase","23/09/2016"
"Wolverhampton City Council","http://opendatacommunities.org/id/metropolitan-district-council/wolverhampton","Amazon UK Marketplace","21.42","Towers Outdoor Education Centre","5942","Equipment - Purchase","23/09/2016"
"Wolverhampton City Council","http://opendatacommunities.org/id/metropolitan-district-council/wolverhampton","DEBENHAMS.COM","44.00","Learning Technologies","5311","Equipment - Purchase","23/09/2016"
"Wolverhampton City Council","http://opendatacommunities.org/id/metropolitan-district-council/wolverhampton","DEBENHAMS.COM","44.00","Learning Technologies","5311","Equipment - Purchase","23/09/2016"
"Wolverhampton City Council","http://opendatacommunities.org/id/metropolitan-district-council/wolverhampton","WIX.COM","93.13","Technical Support","5817","Computing - Purchase of Software","23/09/2016"
"Wolverhampton City Council","http://opendatacommunities.org/id/metropolitan-district-council/wolverhampton","Amazon UK Marketplace","29.04","Learning Technologies","5942","Equipment - Purchase","23/09/2016"
"Wolverhampton City Council","http://opendatacommunities.org/id/metropolitan-district-council/wolverhampton","Wix.com","93.13","Technical Support","5817","Computing - Purchase of Software","23/09/2016"
"Wolverhampton City Council","http://opendatacommunities.org/id/metropolitan-district-council/wolverhampton","CENTRAL TAXIS","21.00","Art Gallery","4121","Public Transport","23/09/2016"
"Wolverhampton City Council","http://opendatacommunities.org/id/metropolitan-district-council/wolverhampton","SAINSBURYS SACAT 2040","7.16","Ernest Bold Court","5411","Equipment - Purchase","23/09/2016"
"Wolverhampton City Council","http://opendatacommunities.org/id/metropolitan-district-council/wolverhampton","HEARTLANDS FURNITURE W","266.67","LAC Transitions Team","5712","Client Allowances","22/09/2016"
"Wolverhampton City Council","http://opendatacommunities.org/id/metropolitan-district-council/wolverhampton","SUITES AND BEDS","210.00","LAC Transitions Team","5712","Client Allowances","22/09/2016"
"Wolverhampton City Council","http://opendatacommunities.org/id/metropolitan-district-council/wolverhampton","ARGOS LTD","374.03","LAC Transitions Team","5310","Client Allowances","22/09/2016"
"Wolverhampton City Council","http://opendatacommunities.org/id/metropolitan-district-council/wolverhampton","PREMIER INN","57.50","Safeguarding Admin Resource","3811","Services - Supplies & Services to users","22/09/2016"
"Wolverhampton City Council","http://opendatacommunities.org/id/metropolitan-district-council/wolverhampton","PURE360","268.80","Civic Halls Non Direct Management A/C","7372","Marketing \ Non-staff advertising","22/09/2016"
"Wolverhampton City Council","http://opendatacommunities.org/id/metropolitan-district-council/wolverhampton","HOMEBASE LTD 103","94.87","Car Parks Operational Staff","5211","Equipment - Purchase","22/09/2016"
"Wolverhampton City Council","http://opendatacommunities.org/id/metropolitan-district-council/wolverhampton","B & Q 1243","96.00","Car Parks Operational Staff","5211","Equipment - Purchase","22/09/2016"
"Wolverhampton City Council","http://opendatacommunities.org/id/metropolitan-district-council/wolverhampton","WWW.ACCOUNTS@IIA.ORG.U","100.00","Central Training","8931","Training Expenses","22/09/2016"
"Wolverhampton City Council","http://opendatacommunities.org/id/metropolitan-district-council/wolverhampton","MARKS&SPENCER PLC SACA","3.07","Mayoral Expenses","5411","Hospitality","22/09/2016"
"Wolverhampton City Council","http://opendatacommunities.org/id/metropolitan-district-council/wolverhampton","Cross Country","169.80","School Improvement","4112","Public Transport","22/09/2016"
"Wolverhampton City Council","http://opendatacommunities.org/id/metropolitan-district-council/wolverhampton","POST OFFICE COUNTER","112.00","CIN/CP Social Work Unit - Area 8","9402","Comms - Postage","22/09/2016"
"Wolverhampton City Council","http://opendatacommunities.org/id/metropolitan-district-council/wolverhampton","B&M RETAIL","65.25","LAC Transitions Team","5310","Client Allowances","22/09/2016"
"Wolverhampton City Council","http://opendatacommunities.org/id/metropolitan-district-council/wolverhampton","MAPLE TOOL HIRE","30.00","European Liaison","5251","Clothing / Uniforms","22/09/2016"
"Wolverhampton City Council","http://opendatacommunities.org/id/metropolitan-district-council/wolverhampton","WEBFLOW.COM","331.06","Strategic ICTS (ICT Serv Budget)","7372","Services - Professional Fees","22/09/2016"
"Wolverhampton City Council","http://opendatacommunities.org/id/metropolitan-district-council/wolverhampton","WWW.ALLPURPOSELTD.CO.U","65.30","Central Baths","2842","Cleaning Supplies and Materials","22/09/2016"
"Wolverhampton City Council","http://opendatacommunities.org/id/metropolitan-district-council/wolverhampton","WOLVERHAMPTON TROPHY C","43.75","Aldersley Leisure Village","5999","Equipment - Purchase","22/09/2016"
"Wolverhampton City Council","http://opendatacommunities.org/id/metropolitan-district-council/wolverhampton","E01510300000000","40.00","Emergency Duty Team","6011","Financial Assistance In Exceptional Circ","22/09/2016"
"Wolverhampton City Council","http://opendatacommunities.org/id/metropolitan-district-council/wolverhampton","THE NEW BRIDGE GUEST H","300.00","Emergency Duty Team","7011","Services - Supplies & Services to users","22/09/2016"
"Wolverhampton City Council","http://opendatacommunities.org/id/metropolitan-district-council/wolverhampton","ASDA HOME SHOPPING","-1.20","Upper Pendeford Farm Childrens Home","5411","Provisions (Not for resale)","22/09/2016"
"Wolverhampton City Council","http://opendatacommunities.org/id/metropolitan-district-council/wolverhampton","ASDA HOME SHOPPING","229.65","Upper Pendeford Farm Childrens Home","5411","Provisions (Not for resale)","22/09/2016"
"Wolverhampton City Council","http://opendatacommunities.org/id/metropolitan-district-council/wolverhampton","WOLVERHAMPTON CC","3.33","Headstart","7523","Car Allowances","22/09/2016"
"Wolverhampton City Council","http://opendatacommunities.org/id/metropolitan-district-council/wolverhampton","WOLVERHAMPTON TROPHY C","27.08","City Direct","5999","Equipment - Purchase","22/09/2016"
"Wolverhampton City Council","http://opendatacommunities.org/id/metropolitan-district-council/wolverhampton","PREMIER INN","58.75","Adoption and Residence Team & Allowances","3811","Accommodation Costs","22/09/2016"
"Wolverhampton City Council","http://opendatacommunities.org/id/metropolitan-district-council/wolverhampton","PREMIER INN","69.99","Adoption and Residence Team & Allowances","3811","Accommodation Costs","22/09/2016"
"Wolverhampton City Council","http://opendatacommunities.org/id/metropolitan-district-council/wolverhampton","Virgintrains.co.uk","113.25","Economic Development","4112","Training Expenses","22/09/2016"
"Wolverhampton City Council","http://opendatacommunities.org/id/metropolitan-district-council/wolverhampton","CENTURY ELECTRICAL WHO","-2.00","Priory Green","5065","R&M - Departmental planned (external)","22/09/2016"
"Wolverhampton City Council","http://opendatacommunities.org/id/metropolitan-district-council/wolverhampton","CARVER/WOLVERHAMPTON/L","63.43","Bilston Town Hall","5211","Cleaning Supplies and Materials","22/09/2016"
"Wolverhampton City Council","http://opendatacommunities.org/id/metropolitan-district-council/wolverhampton","ROYAL CARPETS","325.00","LAC Transitions Team","5713","Client Allowances","22/09/2016"
"Wolverhampton City Council","http://opendatacommunities.org/id/metropolitan-district-council/wolverhampton","ROYAL CARPETS","83.33","LAC Transitions Team","5713","Client Allowances","22/09/2016"
"Wolverhampton City Council","http://opendatacommunities.org/id/metropolitan-district-council/wolverhampton","THE UNIVERSITY OF LIVE","83.33","SEN Sensory Inclusion","8220","Conference Expenses","22/09/2016"
"Wolverhampton City Council","http://opendatacommunities.org/id/metropolitan-district-council/wolverhampton","Amazon UK Marketplace","4.37","SEN Sensory Inclusion","5942","Equipment - Purchase","22/09/2016"
"Wolverhampton City Council","http://opendatacommunities.org/id/metropolitan-district-council/wolverhampton","ARGOS RETAIL GROUP","183.32","EIP Locality 4","5310","Financial Assistance In Exceptional Circ","22/09/2016"
"Wolverhampton City Council","http://opendatacommunities.org/id/metropolitan-district-council/wolverhampton","ARGOS RETAIL GROUP","8.32","EIP Locality 4","5310","Financial Assistance In Exceptional Circ","22/09/2016"
"Wolverhampton City Council","http://opendatacommunities.org/id/metropolitan-district-council/wolverhampton","ARGOS RETAIL GROUP","282.25","CIN/CP S17 SW Unit - Area 5","5310","Financial Assistance In Exceptional Circ","22/09/2016"
"Wolverhampton City Council","http://opendatacommunities.org/id/metropolitan-district-council/wolverhampton","CURRYS ONLINE","116.65","CIN/CP S17 SW Unit - Area 5","5732","Financial Assistance In Exceptional Circ","22/09/2016"
"Wolverhampton City Council","http://opendatacommunities.org/id/metropolitan-district-council/wolverhampton","ASDA SUPERSTORE","30.50","CIN/CP S17 SW Unit - Area 5","5411","Financial Assistance In Exceptional Circ","22/09/2016"
"Wolverhampton City Council","http://opendatacommunities.org/id/metropolitan-district-council/wolverhampton","NEWS EXTRA","55.00","European Liaison","5994","Public Transport","21/09/2016"
"Wolverhampton City Council","http://opendatacommunities.org/id/metropolitan-district-council/wolverhampton","DVLA DRIVER ONLINE","34.00","European Liaison","9399","Financial Assistance In Exceptional Circ","21/09/2016"
"Wolverhampton City Council","http://opendatacommunities.org/id/metropolitan-district-council/wolverhampton","DVLA DRIVER ONLINE","34.00","European Liaison","9399","Financial Assistance In Exceptional Circ","21/09/2016"
"Wolverhampton City Council","http://opendatacommunities.org/id/metropolitan-district-council/wolverhampton","PARCELFORCE WORLDWIDE","17.49","Contemporary Craft - NPO ACE BCG","4214","Comms - Postage","21/09/2016"
"Wolverhampton City Council","http://opendatacommunities.org/id/metropolitan-district-council/wolverhampton","MATALAN","29.17","LAC Transitions Team","5691","Client Allowances","21/09/2016"
"Wolverhampton City Council","http://opendatacommunities.org/id/metropolitan-district-council/wolverhampton","TRAINLINE","70.48","Adoption and Residence Team & Allowances","4112","Public Transport","21/09/2016"
"Wolverhampton City Council","http://opendatacommunities.org/id/metropolitan-district-council/wolverhampton","Amazon UK Marketplace","44.06","Towers Outdoor Education Centre","5942","Equipment - Purchase","21/09/2016"
"Wolverhampton City Council","http://opendatacommunities.org/id/metropolitan-district-council/wolverhampton","WICKES BUILDING","97.45","Contemporary Gallery","5211","Materials","21/09/2016"
"Wolverhampton City Council","http://opendatacommunities.org/id/metropolitan-district-council/wolverhampton","123-REG.CO.UK","744.60","Strategic ICTS (ICT Serv Budget)","4816","Computing - Purchase of Software","21/09/2016"
"Wolverhampton City Council","http://opendatacommunities.org/id/metropolitan-district-council/wolverhampton","TVLICENSING.CO.UK","145.50","Aldersley Leisure Village","7392","Services - General Licences","21/09/2016"
"Wolverhampton City Council","http://opendatacommunities.org/id/metropolitan-district-council/wolverhampton","Virgintrains.co.uk","181.40","LAC Team","4112","Public Transport","21/09/2016"
"Wolverhampton City Council","http://opendatacommunities.org/id/metropolitan-district-council/wolverhampton","WOLVERHAMPTON CC","4.58","Headstart","7523","Car Allowances","21/09/2016"
"Wolverhampton City Council","http://opendatacommunities.org/id/metropolitan-district-council/wolverhampton","Amazon UK Marketplace","10.80","Independent Living Service","5942","Books","21/09/2016"
"Wolverhampton City Council","http://opendatacommunities.org/id/metropolitan-district-council/wolverhampton","CUMMINGS BROTHERS LOCK","38.75","Caretakers Community Centre","7399","R&M - Departmental planned (external)","21/09/2016"
"Wolverhampton City Council","http://opendatacommunities.org/id/metropolitan-district-council/wolverhampton","BARCLAYS BANK PLC","100.00","Hostels / Outreach","6011","Financial Assistance In Exceptional Circ","21/09/2016"
"Wolverhampton City Council","http://opendatacommunities.org/id/metropolitan-district-council/wolverhampton","CT WOLVERHAMPTON","255.00","EIP Locality 1","8398","Services - Supplies & Services to users","21/09/2016"
"Wolverhampton City Council","http://opendatacommunities.org/id/metropolitan-district-council/wolverhampton","TESCO STORES 5194","224.79","Towers Outdoor Education Centre","5411","Provisions (Not for resale)","21/09/2016"
"Wolverhampton City Council","http://opendatacommunities.org/id/metropolitan-district-council/wolverhampton","Amazon UK Marketplace","49.46","Towers Outdoor Education Centre","5942","Books","21/09/2016"
"Wolverhampton City Council","http://opendatacommunities.org/id/metropolitan-district-council/wolverhampton","ARGOS LTD","128.98","Civic Centre","5310","Equipment - Purchase","21/09/2016"
"Wolverhampton City Council","http://opendatacommunities.org/id/metropolitan-district-council/wolverhampton","Amazon UK Marketplace","4.87","Global Budgets","5942","Books","21/09/2016"
"Wolverhampton City Council","http://opendatacommunities.org/id/metropolitan-district-council/wolverhampton","ROYAL BK OF SCOTLAND","180.00","46a, Second Avenue, Low Hill","6011","Financial Assistance In Exceptional Circ","21/09/2016"
"Wolverhampton City Council","http://opendatacommunities.org/id/metropolitan-district-council/wolverhampton","POST OFFICE COUNTER","64.00","Vulnerable Young Persons Team","9402","Comms - Postage","21/09/2016"
"Wolverhampton City Council","http://opendatacommunities.org/id/metropolitan-district-council/wolverhampton","REVIIVE","544.07","CIN/CP S17 SW Unit - Area 5","5712","Furniture","21/09/2016"
"Wolverhampton City Council","http://opendatacommunities.org/id/metropolitan-district-council/wolverhampton","TRAINLINE","74.56","City Marketing (Place)","4112","Public Transport","21/09/2016"
"Wolverhampton City Council","http://opendatacommunities.org/id/metropolitan-district-council/wolverhampton","HEARTLANDS FURNITURE W","233.33","LAC Transitions Team","5712","Client Allowances","21/09/2016"
"Wolverhampton City Council","http://opendatacommunities.org/id/metropolitan-district-council/wolverhampton","SUITES AND BEDS","245.83","LAC Transitions Team","5712","Client Allowances","21/09/2016"
"Wolverhampton City Council","http://opendatacommunities.org/id/metropolitan-district-council/wolverhampton","ARGOS LTD","123.64","LAC Transitions Team","5310","Client Allowances","21/09/2016"
"Wolverhampton City Council","http://opendatacommunities.org/id/metropolitan-district-council/wolverhampton","TRAINLINE","78.13","Safeguarding Admin Resource","4112","Public Transport","21/09/2016"
"Wolverhampton City Council","http://opendatacommunities.org/id/metropolitan-district-council/wolverhampton","WWW.CIMAGLOBAL.COM","246.00","Central Training","8220","Training Expenses","21/09/2016"
"Wolverhampton City Council","http://opendatacommunities.org/id/metropolitan-district-council/wolverhampton","AMAZON UK RETAIL AMAZO","-59.99","School Improvement","5999","Equipment - Purchase","21/09/2016"
"Wolverhampton City Council","http://opendatacommunities.org/id/metropolitan-district-council/wolverhampton","Trainline.com Ltd","181.40","Fostering Team & Allowances","4112","Public Transport","21/09/2016"
"Wolverhampton City Council","http://opendatacommunities.org/id/metropolitan-district-council/wolverhampton","NETWORK WEST MIDLANDS","213.00","LAC Transitions Team","9399","Client Allowances","21/09/2016"
"Wolverhampton City Council","http://opendatacommunities.org/id/metropolitan-district-council/wolverhampton","WWW.KITLOCKER.COM","174.28","LAC Transitions Team","5655","Client Allowances","21/09/2016"
"Wolverhampton City Council","http://opendatacommunities.org/id/metropolitan-district-council/wolverhampton","PARCELFORCE WORLDWIDE","13.74","Contemporary Craft - NPO ACE BCG","4214","Comms - Postage","21/09/2016"
"Wolverhampton City Council","http://opendatacommunities.org/id/metropolitan-district-council/wolverhampton","ASDA HOME SHOPPING","-0.34","Ernest Bold Court","5411","Provisions (Not for resale)","20/09/2016"
"Wolverhampton City Council","http://opendatacommunities.org/id/metropolitan-district-council/wolverhampton","ASDA HOME SHOPPING","86.11","Ernest Bold Court","5411","Provisions (Not for resale)","20/09/2016"
"Wolverhampton City Council","http://opendatacommunities.org/id/metropolitan-district-council/wolverhampton","ARGOS RETAIL GROUP","359.93","Civic Halls Non Direct Management A/C","5310","Equipment - Purchase","20/09/2016"
"Wolverhampton City Council","http://opendatacommunities.org/id/metropolitan-district-council/wolverhampton","EE & T-MOBILE","175.29","Civic Halls Non Direct Management A/C","4814","Comms - Telephone Call charges","20/09/2016"
"Wolverhampton City Council","http://opendatacommunities.org/id/metropolitan-district-council/wolverhampton","CENTRAL TAXIS","13.00","CIN/CP S17 SW Unit - Area 7","4121","Client Transport","20/09/2016"
"Wolverhampton City Council","http://opendatacommunities.org/id/metropolitan-district-council/wolverhampton","CILEX LAW SCHOOL LIMIT","38.00","Legal Services","8244","Training Expenses","20/09/2016"
"Wolverhampton City Council","http://opendatacommunities.org/id/metropolitan-district-council/wolverhampton","WWW.IRONMONGERYDIRECT.","12.45","SEN Early Years Team","5231","Equipment - Purchase","20/09/2016"
"Wolverhampton City Council","http://opendatacommunities.org/id/metropolitan-district-council/wolverhampton","G & M HALE (SUNDRIES)","20.20","Creative Studies Delivery Area","5992","Materials for resale","20/09/2016"
"Wolverhampton City Council","http://opendatacommunities.org/id/metropolitan-district-council/wolverhampton","G & M HALE LTD","37.00","Creative Studies Delivery Area","5992","Materials","20/09/2016"
"Wolverhampton City Council","http://opendatacommunities.org/id/metropolitan-district-council/wolverhampton","SAINSBURYS (2340)","14.58","Duke Street Bungalows","5411","Provisions (Not for resale)","20/09/2016"
"Wolverhampton City Council","http://opendatacommunities.org/id/metropolitan-district-council/wolverhampton","Virgintrains.co.uk","143.50","Mayoral Expenses","4112","Public Transport","20/09/2016"
"Wolverhampton City Council","http://opendatacommunities.org/id/metropolitan-district-council/wolverhampton","Virgintrains.co.uk","179.00","Information Governance Team","4112","Public Transport","20/09/2016"
"Wolverhampton City Council","http://opendatacommunities.org/id/metropolitan-district-council/wolverhampton","ILEX.ORG.UK","90.42","Legal Services","8699","Subscriptions","20/09/2016"
"Wolverhampton City Council","http://opendatacommunities.org/id/metropolitan-district-council/wolverhampton","B&M RETAIL","39.36","Aldersley Leisure Village","5310","Equipment - Purchase","20/09/2016"
"Wolverhampton City Council","http://opendatacommunities.org/id/metropolitan-district-council/wolverhampton","POUNDWORLD RETAIL","25.04","Aldersley Leisure Village","5310","Equipment - Purchase","20/09/2016"
"Wolverhampton City Council","http://opendatacommunities.org/id/metropolitan-district-council/wolverhampton","THE POST OFFICE","30.72","CIN/CP S17 SW Unit - Area 3B","9402","Comms - Postage","20/09/2016"
"Wolverhampton City Council","http://opendatacommunities.org/id/metropolitan-district-council/wolverhampton","FACEBK GVDWA92B92","40.61","Communications & Marketing - General","7311","Marketing \ Non-staff advertising","20/09/2016"
"Wolverhampton City Council","http://opendatacommunities.org/id/metropolitan-district-council/wolverhampton","FACEBK FVDWA92B92","560.08","Communications & Marketing - General","7311","Marketing \ Non-staff advertising","20/09/2016"
"Wolverhampton City Council","http://opendatacommunities.org/id/metropolitan-district-council/wolverhampton","WM MORRISON FOOD.COM","105.92","Discretionary Fund","5411","Materials","20/09/2016"
"Wolverhampton City Council","http://opendatacommunities.org/id/metropolitan-district-council/wolverhampton","WOLVERHAMPTON CC","4.00","Headstart","7523","Parking Fees","20/09/2016"
"Wolverhampton City Council","http://opendatacommunities.org/id/metropolitan-district-council/wolverhampton","WOLVERHAMPTON CC","4.58","Headstart","7523","Car Allowances","20/09/2016"
"Wolverhampton City Council","http://opendatacommunities.org/id/metropolitan-district-council/wolverhampton","CUMMINGS BROTHERS LOCK","7.92","Caretakers Community Centre","7399","R&M - Departmental planned (external)","20/09/2016"
"Wolverhampton City Council","http://opendatacommunities.org/id/metropolitan-district-council/wolverhampton","CENTURY ELECTRICAL WHO","42.00","Traffic Signals","5065","Equipment - R & M","20/09/2016"
"Wolverhampton City Council","http://opendatacommunities.org/id/metropolitan-district-council/wolverhampton","TESCO DELIVERY SAVER2","2.50","Towers Outdoor Education Centre","5968","Subscriptions","20/09/2016"
"Wolverhampton City Council","http://opendatacommunities.org/id/metropolitan-district-council/wolverhampton","Amazon UK Marketplace","183.74","Towers Outdoor Education Centre","5942","Books","20/09/2016"
"Wolverhampton City Council","http://opendatacommunities.org/id/metropolitan-district-council/wolverhampton","Amazon UK Marketplace","0.99","Towers Outdoor Education Centre","5942","Books","20/09/2016"
"Wolverhampton City Council","http://opendatacommunities.org/id/metropolitan-district-council/wolverhampton","Amazon UK Marketplace","3.59","Towers Outdoor Education Centre","5942","Books","20/09/2016"
"Wolverhampton City Council","http://opendatacommunities.org/id/metropolitan-district-council/wolverhampton","Amazon UK Marketplace","14.55","Global Budgets","5942","Books","20/09/2016"
"Wolverhampton City Council","http://opendatacommunities.org/id/metropolitan-district-council/wolverhampton","GOLD SUPERSTORE","13.65","Specialist Support Service - North","5251","Equipment - R & M","20/09/2016"
"Wolverhampton City Council","http://opendatacommunities.org/id/metropolitan-district-council/wolverhampton","WAITROSE 696","15.36","Vulnerable Young Persons Team","5411","Comms - Postage","20/09/2016"
"Wolverhampton City Council","http://opendatacommunities.org/id/metropolitan-district-council/wolverhampton","POST OFFICE COUNTER","55.75","LAC Team","9402","Financial Assistance In Exceptional Circ","20/09/2016"
"Wolverhampton City Council","http://opendatacommunities.org/id/metropolitan-district-council/wolverhampton","Wix.com","46.57","Technical Support","5817","Computing - Purchase of Software","19/09/2016"
"Wolverhampton City Council","http://opendatacommunities.org/id/metropolitan-district-council/wolverhampton","123-REG.CO.UK","6.99","Technical Support","4816","Computing - Purchase of Software","19/09/2016"
"Wolverhampton City Council","http://opendatacommunities.org/id/metropolitan-district-council/wolverhampton","WWW.PRINTED4U.CO.U","-752.33","Communications & Marketing - General","5943","Marketing \ Non-staff advertising","19/09/2016"
"Wolverhampton City Council","http://opendatacommunities.org/id/metropolitan-district-council/wolverhampton","SAMRA'S","6.99","Discretionary Fund","5411","Materials","19/09/2016"
"Wolverhampton City Council","http://opendatacommunities.org/id/metropolitan-district-council/wolverhampton","ARGOS RETAIL GROUP","81.21","Referral Team CIN - S17","5310","Equipment - Purchase","19/09/2016"
"Wolverhampton City Council","http://opendatacommunities.org/id/metropolitan-district-council/wolverhampton","WOLVERHAMPTON CC","12.50","Headstart","7523","Car Allowances","19/09/2016"
"Wolverhampton City Council","http://opendatacommunities.org/id/metropolitan-district-council/wolverhampton","B&M RETAIL LTD","7.95","Headstart","5310","Equipment - Purchase","19/09/2016"
"Wolverhampton City Council","http://opendatacommunities.org/id/metropolitan-district-council/wolverhampton","E01350800000000","20.00","Ernest Bold Court","6011","Laundry Expenses","19/09/2016"
"Wolverhampton City Council","http://opendatacommunities.org/id/metropolitan-district-council/wolverhampton","WISEPOPSCOM","38.14","City Direct","7372","Computing - Purchase of Software","19/09/2016"
"Wolverhampton City Council","http://opendatacommunities.org/id/metropolitan-district-council/wolverhampton","Amazon UK Marketplace","11.66","City Direct","5942","Books","19/09/2016"
"Wolverhampton City Council","http://opendatacommunities.org/id/metropolitan-district-council/wolverhampton","WWW.SEVERNTRENTSEARCHE","455.00","Disposal Costs","4900","Services - Professional Fees","19/09/2016"
"Wolverhampton City Council","http://opendatacommunities.org/id/metropolitan-district-council/wolverhampton","TRAINLINE","34.63","Legal Services","4112","Public Transport","19/09/2016"
"Wolverhampton City Council","http://opendatacommunities.org/id/metropolitan-district-council/wolverhampton","THE COAL AUTHORITY","90.00","Disposal Costs","9399","Services - Professional Fees","19/09/2016"
"Wolverhampton City Council","http://opendatacommunities.org/id/metropolitan-district-council/wolverhampton","Virgintrains.co.uk","75.30","Adoption and Residence Team & Allowances","4112","Public Transport","19/09/2016"
"Wolverhampton City Council","http://opendatacommunities.org/id/metropolitan-district-council/wolverhampton","Amazon UK Marketplace","50.33","City Direct","5942","Books","19/09/2016"
"Wolverhampton City Council","http://opendatacommunities.org/id/metropolitan-district-council/wolverhampton","YOUNGS SHOE REPAIRS LI","60.00","Wolverhampton Indoor and Open Market","7251","Fixtures and Fittings - R&M","19/09/2016"
"Wolverhampton City Council","http://opendatacommunities.org/id/metropolitan-district-council/wolverhampton","ASDA STORES 4452","35.98","EIP Locality 1","5411","Provisions (Not for resale)","19/09/2016"
"Wolverhampton City Council","http://opendatacommunities.org/id/metropolitan-district-council/wolverhampton","ASDA STORES 4452","48.07","EIP Locality 1","5411","Provisions (Not for resale)","19/09/2016"
"Wolverhampton City Council","http://opendatacommunities.org/id/metropolitan-district-council/wolverhampton","SCREWFIX DIRECT","269.87","LAC Transitions Team","5211","Client Allowances","19/09/2016"
"Wolverhampton City Council","http://opendatacommunities.org/id/metropolitan-district-council/wolverhampton","SCREWFIX DIRECT","269.87","LAC Transitions Team","5211","Client Allowances","19/09/2016"
"Wolverhampton City Council","http://opendatacommunities.org/id/metropolitan-district-council/wolverhampton","Amazon UK Marketplace","112.25","LAC Transitions Team","5942","Client Allowances","19/09/2016"
"Wolverhampton City Council","http://opendatacommunities.org/id/metropolitan-district-council/wolverhampton","Amazon UK Marketplace","22.18","LAC Education Team (LACE)","5942","Books","19/09/2016"
"Wolverhampton City Council","http://opendatacommunities.org/id/metropolitan-district-council/wolverhampton","Amazon UK Marketplace","1.24","Towers Outdoor Education Centre","5942","Books","19/09/2016"
"Wolverhampton City Council","http://opendatacommunities.org/id/metropolitan-district-council/wolverhampton","Amazon UK Marketplace","62.49","Towers Outdoor Education Centre","5942","Books","19/09/2016"
"Wolverhampton City Council","http://opendatacommunities.org/id/metropolitan-district-council/wolverhampton","WWW HOVER COM","77.83","Learning Technologies","4816","Computing - Purchase of Software","19/09/2016"
"Wolverhampton City Council","http://opendatacommunities.org/id/metropolitan-district-council/wolverhampton","Amazon UK Marketplace","10.77","Global Budgets","5942","Books","19/09/2016"
"Wolverhampton City Council","http://opendatacommunities.org/id/metropolitan-district-council/wolverhampton","Amazon UK Marketplace","8.80","Global Budgets","5942","Books","19/09/2016"
"Wolverhampton City Council","http://opendatacommunities.org/id/metropolitan-district-council/wolverhampton","Amazon UK Marketplace","20.75","Global Budgets","5942","Books","19/09/2016"
"Wolverhampton City Council","http://opendatacommunities.org/id/metropolitan-district-council/wolverhampton","WICKES","19.98","Specialist Support Service - North","5211","Equipment - R & M","19/09/2016"
"Wolverhampton City Council","http://opendatacommunities.org/id/metropolitan-district-council/wolverhampton","GOLD SUPERSTORE","12.83","Specialist Support Service - North","5251","Equipment - R & M","19/09/2016"
"Wolverhampton City Council","http://opendatacommunities.org/id/metropolitan-district-council/wolverhampton","ASDA HOME SHOPPING","-0.97","Ernest Bold Court","5411","Provisions (Not for resale)","19/09/2016"
"Wolverhampton City Council","http://opendatacommunities.org/id/metropolitan-district-council/wolverhampton","ASDA HOME SHOPPING","98.92","Ernest Bold Court","5411","Provisions (Not for resale)","19/09/2016"
"Wolverhampton City Council","http://opendatacommunities.org/id/metropolitan-district-council/wolverhampton","Virgintrains.co.uk","202.00","Adoption and Residence Team & Allowances","4112","Public Transport","19/09/2016"
"Wolverhampton City Council","http://opendatacommunities.org/id/metropolitan-district-council/wolverhampton","COVENTRY BUSINESS MANA","195.75","Fleet Management","5013","Equipment - Purchase","19/09/2016"
"Wolverhampton City Council","http://opendatacommunities.org/id/metropolitan-district-council/wolverhampton","Amazon Svcs Europe,SAR","2.61","Ground Maintenance Overheads","5942","Books","19/09/2016"
"Wolverhampton City Council","http://opendatacommunities.org/id/metropolitan-district-council/wolverhampton","ARGOS DIRECT","-174.10","LAC Transitions Team","5310","Client Allowances","19/09/2016"
"Wolverhampton City Council","http://opendatacommunities.org/id/metropolitan-district-council/wolverhampton","Amazon EU","11.72","Inclusion Support","5969","Stationery","19/09/2016"
"Wolverhampton City Council","http://opendatacommunities.org/id/metropolitan-district-council/wolverhampton","POLYBAGS LTD","26.66","Catering Overhead Account","5099","Equipment - Purchase","19/09/2016"
"Wolverhampton City Council","http://opendatacommunities.org/id/metropolitan-district-council/wolverhampton","YMLP.COM","63.00","Art Gallery","7372","Computing - Purchase of Software","19/09/2016"
"Wolverhampton City Council","http://opendatacommunities.org/id/metropolitan-district-council/wolverhampton","Cross Country","71.60","Workforce Development","4112","Public Transport","19/09/2016"
"Wolverhampton City Council","http://opendatacommunities.org/id/metropolitan-district-council/wolverhampton","EGGLESSCAKESHOP","1017.00","Corporate Procurement Unit","5462","Catering","16/09/2016"
"Wolverhampton City Council","http://opendatacommunities.org/id/metropolitan-district-council/wolverhampton","PREMIER INN","491.88","Adoption and Residence Team & Allowances","3811","Financial Assistance In Exceptional Circ","16/09/2016"
"Wolverhampton City Council","http://opendatacommunities.org/id/metropolitan-district-council/wolverhampton","EB  DCDC16-COLLECTIONS","64.60","Archives","7399","Conference Expenses","16/09/2016"
"Wolverhampton City Council","http://opendatacommunities.org/id/metropolitan-district-council/wolverhampton","ARRIVA TRAINS WALE","16.33","Central Baths","4112","Public Transport","16/09/2016"
"Wolverhampton City Council","http://opendatacommunities.org/id/metropolitan-district-council/wolverhampton","CENTURY ELECTRICAL WHO","3.80","Priory Green","5065","R&M - Departmental planned (external)","16/09/2016"
"Wolverhampton City Council","http://opendatacommunities.org/id/metropolitan-district-council/wolverhampton","Amazon UK Marketplace","30.00","SEN Early Years Team","5942","Equipment - Purchase","16/09/2016"
"Wolverhampton City Council","http://opendatacommunities.org/id/metropolitan-district-council/wolverhampton","Amazon UK Marketplace","4.47","Parks - Ranger Service","5942","Books","16/09/2016"
"Wolverhampton City Council","http://opendatacommunities.org/id/metropolitan-district-council/wolverhampton","PREMIER INN","70.82","Adoption and Residence Team & Allowances","3811","Accommodation Costs","16/09/2016"
"Wolverhampton City Council","http://opendatacommunities.org/id/metropolitan-district-council/wolverhampton","CENTURY ELECTRICAL WHO","48.80","Priory Green","5065","R&M - Departmental planned (external)","16/09/2016"
"Wolverhampton City Council","http://opendatacommunities.org/id/metropolitan-district-council/wolverhampton","PO WILLENHALL RD 5497","40.00","EIP Locality 1","6011","Financial Assistance In Exceptional Circ","16/09/2016"
"Wolverhampton City Council","http://opendatacommunities.org/id/metropolitan-district-council/wolverhampton","WM MORRISONS","10.14","Commissioning Disabilities","5411","Provisions (Not for resale)","16/09/2016"
"Wolverhampton City Council","http://opendatacommunities.org/id/metropolitan-district-council/wolverhampton","HOME & MOTORSAVE LIMIT","4.63","Commissioning Disabilities","5039","Provisions (Not for resale)","16/09/2016"
"Wolverhampton City Council","http://opendatacommunities.org/id/metropolitan-district-council/wolverhampton","WIX.COM","186.26","Technical Support","5968","Subscriptions","16/09/2016"
"Wolverhampton City Council","http://opendatacommunities.org/id/metropolitan-district-council/wolverhampton","Amazon UK Marketplace","7.17","Global Budgets","5942","Books","16/09/2016"
"Wolverhampton City Council","http://opendatacommunities.org/id/metropolitan-district-council/wolverhampton","Amazon UK Marketplace","6.61","Global Budgets","5942","Books","16/09/2016"
"Wolverhampton City Council","http://opendatacommunities.org/id/metropolitan-district-council/wolverhampton","B & Q 1243","18.60","Specialist Support Service - North","5211","Equipment - R & M","16/09/2016"
"Wolverhampton City Council","http://opendatacommunities.org/id/metropolitan-district-council/wolverhampton","THE POST OFFICE","59.50","CIN/CP S17 SW Unit - Area 5","9402","Comms - Postage","16/09/2016"
"Wolverhampton City Council","http://opendatacommunities.org/id/metropolitan-district-council/wolverhampton","NATWEST BANK","200.00","CIN/CP S17 SW Unit - Area 5","6011","Financial Assistance In Exceptional Circ","16/09/2016"
"Wolverhampton City Council","http://opendatacommunities.org/id/metropolitan-district-council/wolverhampton","NATWEST BANK","250.00","CIN/CP S17 SW Unit - Area 5","6011","Financial Assistance In Exceptional Circ","16/09/2016"
"Wolverhampton City Council","http://opendatacommunities.org/id/metropolitan-district-council/wolverhampton","123 REG R/T","8.39","Art Gallery","5968","Marketing \ Non-staff advertising","16/09/2016"
"Wolverhampton City Council","http://opendatacommunities.org/id/metropolitan-district-council/wolverhampton","WWW.VKF-RENZEL.CO.","-106.06","Art Gallery","5111","Stationery","15/09/2016"
"Wolverhampton City Council","http://opendatacommunities.org/id/metropolitan-district-council/wolverhampton","Amazon EU","73.73","Independent Living Service","5969","Equipment - Purchase","15/09/2016"
"Wolverhampton City Council","http://opendatacommunities.org/id/metropolitan-district-council/wolverhampton","ASDA SUPERSTORE","4.78","Central Baths","5411","Equipment - Purchase","15/09/2016"
"Wolverhampton City Council","http://opendatacommunities.org/id/metropolitan-district-council/wolverhampton","PAYPAL  KAYPICTURES","325.50","SEN Sensory Inclusion","5999","Equipment - Purchase","15/09/2016"
"Wolverhampton City Council","http://opendatacommunities.org/id/metropolitan-district-council/wolverhampton","Amazon EU","220.00","Technical Support","5969","Equipment - Purchase","15/09/2016"
"Wolverhampton City Council","http://opendatacommunities.org/id/metropolitan-district-council/wolverhampton","Amazon UK Marketplace","5.99","Global Budgets","5942","Books","15/09/2016"
"Wolverhampton City Council","http://opendatacommunities.org/id/metropolitan-district-council/wolverhampton","Amazon UK Marketplace","5.18","Global Budgets","5942","Books","15/09/2016"
"Wolverhampton City Council","http://opendatacommunities.org/id/metropolitan-district-council/wolverhampton","HOMEBASE LTD 103","28.24","Specialist Support Service - North","5211","Equipment - R & M","15/09/2016"
"Wolverhampton City Council","http://opendatacommunities.org/id/metropolitan-district-council/wolverhampton","POST OFFICE COUNTER","111.50","LAC Team","9402","Financial Assistance In Exceptional Circ","15/09/2016"
"Wolverhampton City Council","http://opendatacommunities.org/id/metropolitan-district-council/wolverhampton","WEST MID TRAVEL","829.10","Banking","4131","Public Transport","15/09/2016"
"Wolverhampton City Council","http://opendatacommunities.org/id/metropolitan-district-council/wolverhampton","EE LIMITED R501","10.00","School Crossing Patrol","4812","Comms - Mobile Telephones","15/09/2016"
"Wolverhampton City Council","http://opendatacommunities.org/id/metropolitan-district-council/wolverhampton","MACHINE MART LTD","28.99","Car Parks Operational Staff","5722","Equipment - Purchase","15/09/2016"
"Wolverhampton City Council","http://opendatacommunities.org/id/metropolitan-district-council/wolverhampton","CENTRO HOUSE","266.44","Travel Scratch Cards & Rail Warrants","4112","Public Transport","15/09/2016"
"Wolverhampton City Council","http://opendatacommunities.org/id/metropolitan-district-council/wolverhampton","CENTRO HOUSE","2000.00","Travel Scratch Cards & Rail Warrants","4112","Public Transport","15/09/2016"
"Wolverhampton City Council","http://opendatacommunities.org/id/metropolitan-district-council/wolverhampton","ASDA HOME SHOPPING","67.65","Ernest Bold Court","5411","Provisions (Not for resale)","15/09/2016"
"Wolverhampton City Council","http://opendatacommunities.org/id/metropolitan-district-council/wolverhampton","POUNDLAND LTD 1463","4.17","Legal Services","5310","Stationery","15/09/2016"
"Wolverhampton City Council","http://opendatacommunities.org/id/metropolitan-district-council/wolverhampton","WWW.SEVERNTRENTSEARCHE","145.00","Disposal Costs","4900","Services - Professional Fees","15/09/2016"
"Wolverhampton City Council","http://opendatacommunities.org/id/metropolitan-district-council/wolverhampton","LONDON MIDLAND TIC","190.40","SEN Early Years Team","4112","Public Transport","15/09/2016"
"Wolverhampton City Council","http://opendatacommunities.org/id/metropolitan-district-council/wolverhampton","WOLVES CC","120.00","CIN/CP S17 SW Unit - Area 5","9399","Services - Fees and Charges","15/09/2016"
"Wolverhampton City Council","http://opendatacommunities.org/id/metropolitan-district-council/wolverhampton","E.ON ENERGY SOLUTIONS","200.00","CIN/CP S17 SW Unit - Area 5","4900","Electricity","15/09/2016"
"Wolverhampton City Council","http://opendatacommunities.org/id/metropolitan-district-council/wolverhampton","VANQUISH INTEGRATED PE","110.00","Ground Maintenance East","5734","Materials","15/09/2016"
"Wolverhampton City Council","http://opendatacommunities.org/id/metropolitan-district-council/wolverhampton","TIMPSON LTD","5.00","Revenues","7251","Fixtures and Fittings - R&M","15/09/2016"
"Wolverhampton City Council","http://opendatacommunities.org/id/metropolitan-district-council/wolverhampton","PREMIER INN","48.75","Adoption and Residence Team & Allowances","3811","Accommodation Costs","15/09/2016"
"Wolverhampton City Council","http://opendatacommunities.org/id/metropolitan-district-council/wolverhampton","WALSALL COUNCIL","27.00","Adoption and Residence Team & Allowances","9399","Services - Fees and Charges","15/09/2016"
"Wolverhampton City Council","http://opendatacommunities.org/id/metropolitan-district-council/wolverhampton","NOTEMACHINE","250.00","CIN/CP S17 SW Unit - Area 6","6011","Child Care Provided For Client","15/09/2016"
"Wolverhampton City Council","http://opendatacommunities.org/id/metropolitan-district-council/wolverhampton","REGISTRARS OFFICE","10.00","European Liaison","8299","Financial Assistance In Exceptional Circ","15/09/2016"
"Wolverhampton City Council","http://opendatacommunities.org/id/metropolitan-district-council/wolverhampton","ASDA SUPERSTORE","100.00","CIN/CP S17 SW Unit - Area 3B","5411","Provisions (Not for resale)","15/09/2016"
"Wolverhampton City Council","http://opendatacommunities.org/id/metropolitan-district-council/wolverhampton","ASDA SUPERSTORE","200.00","CIN/CP S17 SW Unit - Area 3B","5411","Provisions (Not for resale)","15/09/2016"
"Wolverhampton City Council","http://opendatacommunities.org/id/metropolitan-district-council/wolverhampton","ARGOS DIRECT","124.12","Mental Health Assessment & Care Mgmt","5310","Equipment - Purchase","15/09/2016"
"Wolverhampton City Council","http://opendatacommunities.org/id/metropolitan-district-council/wolverhampton","Amazon UK Marketplace","18.89","Expenditure","5942","Cleaning Supplies and Materials","15/09/2016"
"Wolverhampton City Council","http://opendatacommunities.org/id/metropolitan-district-council/wolverhampton","ARGOS LTD","83.30","LAC Transitions Team","5310","Client Allowances","15/09/2016"
"Wolverhampton City Council","http://opendatacommunities.org/id/metropolitan-district-council/wolverhampton","WOLVERHAMPTON CC","3.00","Headstart","7523","Parking Fees","15/09/2016"
"Wolverhampton City Council","http://opendatacommunities.org/id/metropolitan-district-council/wolverhampton","ASDA SUPERSTORE","65.00","Telecare","5411","Equipment - Health and Safety","15/09/2016"
"Wolverhampton City Council","http://opendatacommunities.org/id/metropolitan-district-council/wolverhampton","ASDA 4387","69.00","CIN/CP S17 SW Unit - Area 5","5411","Provisions (Not for resale)","14/09/2016"
"Wolverhampton City Council","http://opendatacommunities.org/id/metropolitan-district-council/wolverhampton","THE QUALITY HOTEL WOLV","53.00","Adoption and Residence Team & Allowances","7011","Accommodation Costs","14/09/2016"
"Wolverhampton City Council","http://opendatacommunities.org/id/metropolitan-district-council/wolverhampton","TRAVELODGE","91.90","Adoption and Residence Team & Allowances","3615","Accommodation Costs","14/09/2016"
"Wolverhampton City Council","http://opendatacommunities.org/id/metropolitan-district-council/wolverhampton","TRAINLINE","466.65","Adoption and Residence Team & Allowances","4112","Public Transport","14/09/2016"
"Wolverhampton City Council","http://opendatacommunities.org/id/metropolitan-district-council/wolverhampton","POST OFFICE COUNTER","414.06","Adoption and Residence Team & Allowances","9402","Comms - Postage","14/09/2016"
"Wolverhampton City Council","http://opendatacommunities.org/id/metropolitan-district-council/wolverhampton","DVLA DRIVER ONLINE","20.00","European Liaison","9399","Financial Assistance In Exceptional Circ","14/09/2016"
"Wolverhampton City Council","http://opendatacommunities.org/id/metropolitan-district-council/wolverhampton","LOVE2SHOP.CO.UK","404.25","European Liaison","8641","Clothing / Uniforms","14/09/2016"
"Wolverhampton City Council","http://opendatacommunities.org/id/metropolitan-district-council/wolverhampton","ASDA HOME SHOPPING","270.65","Upper Pendeford Farm Childrens Home","5411","Provisions (Not for resale)","14/09/2016"
"Wolverhampton City Council","http://opendatacommunities.org/id/metropolitan-district-council/wolverhampton","WWW.SIGNATURE.ORG.UK","99.00","Language Studies Delivery Area","8299","Training Expenses","14/09/2016"
"Wolverhampton City Council","http://opendatacommunities.org/id/metropolitan-district-council/wolverhampton","ARGOS RETAIL GROUP","339.12","LAC Transitions Team","5310","Client Allowances","14/09/2016"
"Wolverhampton City Council","http://opendatacommunities.org/id/metropolitan-district-council/wolverhampton","ARGOS LTD","266.65","LAC Transitions Team","5310","Client Allowances","14/09/2016"
"Wolverhampton City Council","http://opendatacommunities.org/id/metropolitan-district-council/wolverhampton","CUMMINGS BROTHERS LOCK","9.00","Adoption and Residence Team & Allowances","7399","Equipment - Purchase","14/09/2016"
"Wolverhampton City Council","http://opendatacommunities.org/id/metropolitan-district-council/wolverhampton","E01510300000000","30.00","Referral Team CIN - S17","6011","Financial Assistance In Exceptional Circ","14/09/2016"
"Wolverhampton City Council","http://opendatacommunities.org/id/metropolitan-district-council/wolverhampton","TVLICENSING.CO.UK","145.50","LAC Transitions Team","7392","Client Allowances","14/09/2016"
"Wolverhampton City Council","http://opendatacommunities.org/id/metropolitan-district-council/wolverhampton","Amazon UK Marketplace","-31.49","Contemporary Gallery","5999","Equipment - Purchase","14/09/2016"
"Wolverhampton City Council","http://opendatacommunities.org/id/metropolitan-district-council/wolverhampton","TESCO STORES 5194","148.90","Towers Outdoor Education Centre","5411","Provisions (Not for resale)","14/09/2016"
"Wolverhampton City Council","http://opendatacommunities.org/id/metropolitan-district-council/wolverhampton","ARGOS RETAIL GROUP","301.92","LAC Team","5310","Financial Assistance In Exceptional Circ","14/09/2016"
"Wolverhampton City Council","http://opendatacommunities.org/id/metropolitan-district-council/wolverhampton","NCS VUE CITB HS&E REV","10.95","Civic Centre","8299","Training Expenses","14/09/2016"
"Wolverhampton City Council","http://opendatacommunities.org/id/metropolitan-district-council/wolverhampton","WEST COAST TRAINS","7.50","Road Safety","4112","Public Transport","14/09/2016"
"Wolverhampton City Council","http://opendatacommunities.org/id/metropolitan-district-council/wolverhampton","REGISTRARS OFFICE","30.00","Head of Service - CINCP","8299","Services - Professional Fees","14/09/2016"
"Wolverhampton City Council","http://opendatacommunities.org/id/metropolitan-district-council/wolverhampton","WWW.SEVERNTRENTSEARCHE","290.00","Disposal Costs","4900","Services - Professional Fees","14/09/2016"
"Wolverhampton City Council","http://opendatacommunities.org/id/metropolitan-district-council/wolverhampton","WWW.SEVERNTRENTSEARCHE","455.00","Disposal Costs","4900","Services - Professional Fees","14/09/2016"
"Wolverhampton City Council","http://opendatacommunities.org/id/metropolitan-district-council/wolverhampton","WAITROSE 696","7.58","EIP Locality 3","5411","Provisions (Not for resale)","13/09/2016"
"Wolverhampton City Council","http://opendatacommunities.org/id/metropolitan-district-council/wolverhampton","TRAINLINE","69.26","CIN/CP S17 SW Unit - Area 5","4112","Public Transport","13/09/2016"
"Wolverhampton City Council","http://opendatacommunities.org/id/metropolitan-district-council/wolverhampton","ARGOS RETAIL GROUP","170.00","LAC Transitions Team","5310","Client Allowances","13/09/2016"
"Wolverhampton City Council","http://opendatacommunities.org/id/metropolitan-district-council/wolverhampton","ARGOS RETAIL GROUP","170.00","LAC Transitions Team","5310","Client Allowances","13/09/2016"
"Wolverhampton City Council","http://opendatacommunities.org/id/metropolitan-district-council/wolverhampton","ARGOS RETAIL GROUP","174.10","LAC Transitions Team","5310","Client Allowances","13/09/2016"
"Wolverhampton City Council","http://opendatacommunities.org/id/metropolitan-district-council/wolverhampton","ARGOS RETAIL GROUP","174.10","LAC Transitions Team","5310","Client Allowances","13/09/2016"
"Wolverhampton City Council","http://opendatacommunities.org/id/metropolitan-district-council/wolverhampton","ARGOS RETAIL GROUP","174.10","LAC Transitions Team","5310","Client Allowances","13/09/2016"
"Wolverhampton City Council","http://opendatacommunities.org/id/metropolitan-district-council/wolverhampton","Virgintrains.co.uk","111.00","Agresso System Support","4112","Public Transport","13/09/2016"
"Wolverhampton City Council","http://opendatacommunities.org/id/metropolitan-district-council/wolverhampton","TRAINLINE","30.35","Agresso System Support","4112","Public Transport","13/09/2016"
"Wolverhampton City Council","http://opendatacommunities.org/id/metropolitan-district-council/wolverhampton","WICKES","11.97","Specialist Support Service - North","5211","Equipment - R & M","13/09/2016"
"Wolverhampton City Council","http://opendatacommunities.org/id/metropolitan-district-council/wolverhampton","HOMEBASE LTD 103","41.38","Specialist Support Service - North","5211","Equipment - R & M","13/09/2016"
"Wolverhampton City Council","http://opendatacommunities.org/id/metropolitan-district-council/wolverhampton","Virgintrains.co.uk","161.00","Members Expenses","4112","Public Transport","13/09/2016"
"Wolverhampton City Council","http://opendatacommunities.org/id/metropolitan-district-council/wolverhampton","M-R-S COMMUNICATIONS L","130.00","The Little Civic","5046","Comms - Telephone Call charges","13/09/2016"
"Wolverhampton City Council","http://opendatacommunities.org/id/metropolitan-district-council/wolverhampton","M-R-S COMMUNICATIONS L","130.00","Civic Halls Non Direct Management A/C","5046","Comms - Telephone Call charges","13/09/2016"
"Wolverhampton City Council","http://opendatacommunities.org/id/metropolitan-district-council/wolverhampton","ASDA SUPERSTORE","8.00","Civic Centre Catering","5411","Provisions (Not for resale)","13/09/2016"
"Wolverhampton City Council","http://opendatacommunities.org/id/metropolitan-district-council/wolverhampton","NCS VUE CITB HS&E REV","21.90","Property Services - Building Maintenance","8299","Training Expenses","13/09/2016"
"Wolverhampton City Council","http://opendatacommunities.org/id/metropolitan-district-council/wolverhampton","VUE NCS CITB HS&E TEST","19.50","Property Services - Building Maintenance","8299","Training Expenses","13/09/2016"
"Wolverhampton City Council","http://opendatacommunities.org/id/metropolitan-district-council/wolverhampton","VUE NCS CITB HS&E TEST","19.50","Property Services - Building Maintenance","8299","Training Expenses","13/09/2016"
"Wolverhampton City Council","http://opendatacommunities.org/id/metropolitan-district-council/wolverhampton","VUE NCS CITB HS&E TEST","19.50","Civic Centre","8299","Training Expenses","13/09/2016"
"Wolverhampton City Council","http://opendatacommunities.org/id/metropolitan-district-council/wolverhampton","THE COAL AUTHORITY","90.00","Disposal Costs","9399","Services - Professional Fees","13/09/2016"
"Wolverhampton City Council","http://opendatacommunities.org/id/metropolitan-district-council/wolverhampton","REGISTRARS OFFICE","30.00","Head of Service - CINCP","8299","Services - Professional Fees","13/09/2016"
"Wolverhampton City Council","http://opendatacommunities.org/id/metropolitan-district-council/wolverhampton","REGISTRARS OFFICE","10.00","European Liaison","8299","Financial Assistance In Exceptional Circ","13/09/2016"
"Wolverhampton City Council","http://opendatacommunities.org/id/metropolitan-district-council/wolverhampton","ARGOS RETAIL GROUP","106.94","LAC Transitions Team","5310","Client Allowances","13/09/2016"
"Wolverhampton City Council","http://opendatacommunities.org/id/metropolitan-district-council/wolverhampton","DENNIS WILLIAMS","93.71","LAC Transitions Team","7230","Client Allowances","13/09/2016"
"Wolverhampton City Council","http://opendatacommunities.org/id/metropolitan-district-council/wolverhampton","Virgintrains.co.uk","8.30","Delivery & OCE Development","4112","Public Transport","13/09/2016"
"Wolverhampton City Council","http://opendatacommunities.org/id/metropolitan-district-council/wolverhampton","CURRYS ONLINE","158.33","Bert Williams Leisure Centre","5732","Equipment - Purchase","13/09/2016"
"Wolverhampton City Council","http://opendatacommunities.org/id/metropolitan-district-council/wolverhampton","WM MORRISONS","2.70","Upper Pendeford Farm Childrens Home","5411","Provisions (Not for resale)","13/09/2016"
"Wolverhampton City Council","http://opendatacommunities.org/id/metropolitan-district-council/wolverhampton","Amazon UK Marketplace","25.83","Headstart","5942","Equipment - Purchase","13/09/2016"
"Wolverhampton City Council","http://opendatacommunities.org/id/metropolitan-district-council/wolverhampton","CENTURY ELECTRICAL WHO","11.25","Civic Centre","5065","R&M - Departmental planned (external)","13/09/2016"
"Wolverhampton City Council","http://opendatacommunities.org/id/metropolitan-district-council/wolverhampton","Cross Country","27.25","Condition Surveys","4112","Public Transport","13/09/2016"
"Wolverhampton City Council","http://opendatacommunities.org/id/metropolitan-district-council/wolverhampton","FSPRG.COM INFFUSE.COM","5.05","Technical Support","5734","Computing - Purchase of Software","13/09/2016"
"Wolverhampton City Council","http://opendatacommunities.org/id/metropolitan-district-council/wolverhampton","HOOTSUITE MEDIA INC.","83.88","Learning Technologies","7399","Subscriptions","13/09/2016"
"Wolverhampton City Council","http://opendatacommunities.org/id/metropolitan-district-council/wolverhampton","ARGOS RETAIL GROUP","41.67","LAC Transitions Team","5310","Client Allowances","12/09/2016"
"Wolverhampton City Council","http://opendatacommunities.org/id/metropolitan-district-council/wolverhampton","CURRYS ONLINE","99.99","LAC Transitions Team","5732","Client Allowances","12/09/2016"
"Wolverhampton City Council","http://opendatacommunities.org/id/metropolitan-district-council/wolverhampton","DUNELM ONLINE ORDER","208.27","LAC Transitions Team","5714","Client Allowances","12/09/2016"
"Wolverhampton City Council","http://opendatacommunities.org/id/metropolitan-district-council/wolverhampton","VWO.com","45.88","City Direct","7399","Equipment - Purchase","12/09/2016"
"Wolverhampton City Council","http://opendatacommunities.org/id/metropolitan-district-council/wolverhampton","POST OFFICE COUNTER","7.25","Duke Street Bungalows","9402","Comms - Postage","12/09/2016"
"Wolverhampton City Council","http://opendatacommunities.org/id/metropolitan-district-council/wolverhampton","LONDON MIDLAND TIC","5.50","Duke Street Bungalows","4112","Public Transport","12/09/2016"
"Wolverhampton City Council","http://opendatacommunities.org/id/metropolitan-district-council/wolverhampton","WIX.COM","1.58","Technical Support","5968","Subscriptions","12/09/2016"
"Wolverhampton City Council","http://opendatacommunities.org/id/metropolitan-district-council/wolverhampton","Wix.com","93.13","Technical Support","5817","Computing - Purchase of Software","12/09/2016"
"Wolverhampton City Council","http://opendatacommunities.org/id/metropolitan-district-council/wolverhampton","HOMEBASE LTD 103","37.97","Specialist Support Service - North","5211","Equipment - R & M","12/09/2016"
"Wolverhampton City Council","http://opendatacommunities.org/id/metropolitan-district-council/wolverhampton","HOMEBASE LTD 103","33.15","Specialist Support Service - North","5211","Equipment - R & M","12/09/2016"
"Wolverhampton City Council","http://opendatacommunities.org/id/metropolitan-district-council/wolverhampton","Virgintrains.co.uk","119.75","LAC Team","4112","Public Transport","12/09/2016"
"Wolverhampton City Council","http://opendatacommunities.org/id/metropolitan-district-council/wolverhampton","THE POST OFFICE","55.75","LAC Team","9402","Financial Assistance In Exceptional Circ","12/09/2016"
"Wolverhampton City Council","http://opendatacommunities.org/id/metropolitan-district-council/wolverhampton","THE RED HOUSE","35.98","European Liaison","5611","Clothing / Uniforms","12/09/2016"
"Wolverhampton City Council","http://opendatacommunities.org/id/metropolitan-district-council/wolverhampton","TRAINLINE","34.63","Information & Intelligence","4112","Public Transport","12/09/2016"
"Wolverhampton City Council","http://opendatacommunities.org/id/metropolitan-district-council/wolverhampton","Amazon UK Marketplace","8.32","Central Baths","5942","Equipment - Purchase","12/09/2016"
"Wolverhampton City Council","http://opendatacommunities.org/id/metropolitan-district-council/wolverhampton","J P LENNARD LTD","132.24","Central Baths","5941","Equipment - Purchase","12/09/2016"
"Wolverhampton City Council","http://opendatacommunities.org/id/metropolitan-district-council/wolverhampton","Amazon EU","37.81","Bert Williams Leisure Centre","5969","Equipment - Purchase","12/09/2016"
"Wolverhampton City Council","http://opendatacommunities.org/id/metropolitan-district-council/wolverhampton","Amazon EU","37.80","Bert Williams Leisure Centre","5969","Equipment - Purchase","12/09/2016"
"Wolverhampton City Council","http://opendatacommunities.org/id/metropolitan-district-council/wolverhampton","ASDA SUPERSTORE","200.00","CIN/CP S17 SW Unit - Area 5","5411","Provisions (Not for resale)","12/09/2016"
"Wolverhampton City Council","http://opendatacommunities.org/id/metropolitan-district-council/wolverhampton","TRAINLINE","116.28","Strategy & Development","4112","Public Transport","12/09/2016"
"Wolverhampton City Council","http://opendatacommunities.org/id/metropolitan-district-council/wolverhampton","ARGOS RETAIL GROUP","21.94","CIN/CP S17 SW Unit - Area 7","5310","Equipment - Purchase","12/09/2016"
"Wolverhampton City Council","http://opendatacommunities.org/id/metropolitan-district-council/wolverhampton","OYSTER ISSUE WEB","25.00","Welfare Rights","4112","Public Transport","12/09/2016"
"Wolverhampton City Council","http://opendatacommunities.org/id/metropolitan-district-council/wolverhampton","Virgintrains.co.uk","180.00","Welfare Rights","4112","Public Transport","12/09/2016"
"Wolverhampton City Council","http://opendatacommunities.org/id/metropolitan-district-council/wolverhampton","ASDA HOME SHOPPING","-2.00","Ernest Bold Court","5411","Provisions (Not for resale)","12/09/2016"
"Wolverhampton City Council","http://opendatacommunities.org/id/metropolitan-district-council/wolverhampton","ASDA HOME SHOPPING","79.51","Ernest Bold Court","5411","Provisions (Not for resale)","12/09/2016"
"Wolverhampton City Council","http://opendatacommunities.org/id/metropolitan-district-council/wolverhampton","WWW.CLOCKINGSYSTEMS.CO","198.00","Parks - Ranger Service","5999","Equipment - Purchase","12/09/2016"
"Wolverhampton City Council","http://opendatacommunities.org/id/metropolitan-district-council/wolverhampton","WWW.VIKING-DIRECT.CO.U","14.80","Revenues","5111","Stationery","12/09/2016"
"Wolverhampton City Council","http://opendatacommunities.org/id/metropolitan-district-council/wolverhampton","ROYAL MAIL  0845606040","2.00","Revenues","9402","Comms - Postage","12/09/2016"
"Wolverhampton City Council","http://opendatacommunities.org/id/metropolitan-district-council/wolverhampton","TFM FARM & COUNTRY SUP","125.29","Northicote Farm","5399","Equipment - Purchase","12/09/2016"
"Wolverhampton City Council","http://opendatacommunities.org/id/metropolitan-district-council/wolverhampton","PREMIER INN","181.67","Mayoral Expenses","3811","Accommodation Costs","12/09/2016"
"Wolverhampton City Council","http://opendatacommunities.org/id/metropolitan-district-council/wolverhampton","WWW.GOV.UK","10.00","Financial Assessments","8999","Services - Professional Fees","09/09/2016"
"Wolverhampton City Council","http://opendatacommunities.org/id/metropolitan-district-council/wolverhampton","WIX.COM","93.13","Technical Support","5817","Computing - Purchase of Software","09/09/2016"
"Wolverhampton City Council","http://opendatacommunities.org/id/metropolitan-district-council/wolverhampton","Wix.com","93.13","Technical Support","5817","Computing - Purchase of Software","09/09/2016"
"Wolverhampton City Council","http://opendatacommunities.org/id/metropolitan-district-council/wolverhampton","HOMEBASE LTD 103","24.27","Specialist Support Service - North","5211","Equipment - R & M","09/09/2016"
"Wolverhampton City Council","http://opendatacommunities.org/id/metropolitan-district-council/wolverhampton","POST OFFICE COUNTER","55.75","LAC Team","9402","Financial Assistance In Exceptional Circ","09/09/2016"
"Wolverhampton City Council","http://opendatacommunities.org/id/metropolitan-district-council/wolverhampton","BHAMCOUNCILPHONE","160.00","Environmental Health - Pub Prot - Gen","9399","Services - Fees and Charges","09/09/2016"
"Wolverhampton City Council","http://opendatacommunities.org/id/metropolitan-district-council/wolverhampton","EE LIMITED R501","10.00","School Crossing Patrol","4812","Comms - Mobile Telephones","09/09/2016"
"Wolverhampton City Council","http://opendatacommunities.org/id/metropolitan-district-council/wolverhampton","WOLVES CC","25.00","CIN/CP S17 SW Unit - Area 7","9399","Services - Fees and Charges","09/09/2016"
"Wolverhampton City Council","http://opendatacommunities.org/id/metropolitan-district-council/wolverhampton","PC WORLD","41.66","Children & Family Contact Services","5732","Equipment - Purchase","09/09/2016"
"Wolverhampton City Council","http://opendatacommunities.org/id/metropolitan-district-council/wolverhampton","PETS AT HOME LTD","7.50","Children & Family Contact Services","5995","Equipment - Purchase","09/09/2016"
"Wolverhampton City Council","http://opendatacommunities.org/id/metropolitan-district-council/wolverhampton","PARCELFORCE WORLDWIDE","18.36","Contemporary Craft - NPO ACE BCG","4214","Comms - Postage","09/09/2016"
"Wolverhampton City Council","http://opendatacommunities.org/id/metropolitan-district-council/wolverhampton","E01510300000000","150.00","Emergency Duty Team","6011","Financial Assistance In Exceptional Circ","09/09/2016"
"Wolverhampton City Council","http://opendatacommunities.org/id/metropolitan-district-council/wolverhampton","PARKIN FABRICS LIM","103.96","Creative Studies Delivery Area","5949","Materials","09/09/2016"
"Wolverhampton City Council","http://opendatacommunities.org/id/metropolitan-district-council/wolverhampton","LOYD WEDNESFIELD WOLVE","200.00","EIP Locality 8","6011","Equipment - Purchase","09/09/2016"
"Wolverhampton City Council","http://opendatacommunities.org/id/metropolitan-district-council/wolverhampton","TVLICENSING.CO.UK","0.00","Court of Protection, Funerals Prot Prop","7392","Services - Supplies & Services to users","09/09/2016"
"Wolverhampton City Council","http://opendatacommunities.org/id/metropolitan-district-council/wolverhampton","CUMMINGS BROTHERS LOCK","6.67","Culwell Street Depot","7399","R&M - Departmental planned (external)","09/09/2016"
"Wolverhampton City Council","http://opendatacommunities.org/id/metropolitan-district-council/wolverhampton","AMAZON UK RETAIL AMAZO","86.20","Strategic ICTS (ICT Serv Budget)","5999","Equipment - Purchase","09/09/2016"
"Wolverhampton City Council","http://opendatacommunities.org/id/metropolitan-district-council/wolverhampton","Amazon UK Marketplace","14.60","Central Baths","5942","Equipment - Purchase","09/09/2016"
"Wolverhampton City Council","http://opendatacommunities.org/id/metropolitan-district-council/wolverhampton","FACEBK 6FL4H96B92","13.84","Communications & Marketing - General","7311","Marketing \ Non-staff advertising","09/09/2016"
"Wolverhampton City Council","http://opendatacommunities.org/id/metropolitan-district-council/wolverhampton","FACEBK 5FL4H96B92","586.33","Communications & Marketing - General","7311","Marketing \ Non-staff advertising","09/09/2016"
"Wolverhampton City Council","http://opendatacommunities.org/id/metropolitan-district-council/wolverhampton","CUMMINGS BROTHERS LOCK","8.67","Priory Green","7399","R&M - Departmental planned (external)","09/09/2016"
"Wolverhampton City Council","http://opendatacommunities.org/id/metropolitan-district-council/wolverhampton","SCREWFIX DIRECT LT","62.87","Culwell Street Depot","5211","Equipment - Purchase","09/09/2016"
"Wolverhampton City Council","http://opendatacommunities.org/id/metropolitan-district-council/wolverhampton","SCREWFIX DIRECT LT","24.99","Culwell Street Depot","5211","Equipment - Purchase","09/09/2016"
"Wolverhampton City Council","http://opendatacommunities.org/id/metropolitan-district-council/wolverhampton","ASDA SUPERSTORE","4.00","EIP Locality 1","5411","Provisions (Not for resale)","09/09/2016"
"Wolverhampton City Council","http://opendatacommunities.org/id/metropolitan-district-council/wolverhampton","ASDA SUPERSTORE","34.55","EIP Locality 1","5411","Provisions (Not for resale)","09/09/2016"
"Wolverhampton City Council","http://opendatacommunities.org/id/metropolitan-district-council/wolverhampton","THE IMC GROUP LTD","555.00","Collections & Conservation","5065","Equipment - Purchase","09/09/2016"
"Wolverhampton City Council","http://opendatacommunities.org/id/metropolitan-district-council/wolverhampton","LOYD WOLVERHAMPTON QUE","50.00","Duke Street Bungalows","6011","Financial Assistance In Exceptional Circ","09/09/2016"
"Wolverhampton City Council","http://opendatacommunities.org/id/metropolitan-district-council/wolverhampton","LOYD WOLVERHAMPTON QUE","50.00","Duke Street Bungalows","6011","Financial Assistance In Exceptional Circ","09/09/2016"
"Wolverhampton City Council","http://opendatacommunities.org/id/metropolitan-district-council/wolverhampton","ESP","177.00","SEN Sensory Inclusion","5399","Equipment - Purchase","09/09/2016"
"Wolverhampton City Council","http://opendatacommunities.org/id/metropolitan-district-council/wolverhampton","PARCELFORCE WORLDWIDE","18.36","Contemporary Craft - NPO ACE BCG","4214","Comms - Postage","09/09/2016"
"Wolverhampton City Council","http://opendatacommunities.org/id/metropolitan-district-council/wolverhampton","PARCELFORCE WORLDWIDE","21.37","Contemporary Craft - NPO ACE BCG","4214","Comms - Postage","09/09/2016"
"Wolverhampton City Council","http://opendatacommunities.org/id/metropolitan-district-council/wolverhampton","PARCELFORCE WORLDWIDE","33.48","Contemporary Craft - NPO ACE BCG","4214","Comms - Postage","09/09/2016"
"Wolverhampton City Council","http://opendatacommunities.org/id/metropolitan-district-council/wolverhampton","PARCELFORCE WORLDWIDE","37.51","Contemporary Craft - NPO ACE BCG","4214","Comms - Postage","09/09/2016"
"Wolverhampton City Council","http://opendatacommunities.org/id/metropolitan-district-council/wolverhampton","PARCELFORCE WORLDWIDE","43.87","Contemporary Craft - NPO ACE BCG","4214","Comms - Postage","09/09/2016"
"Wolverhampton City Council","http://opendatacommunities.org/id/metropolitan-district-council/wolverhampton","CARVER/WOLVERHAMPTON/L","92.17","Parks - South West Area Management","5211","Materials","09/09/2016"
"Wolverhampton City Council","http://opendatacommunities.org/id/metropolitan-district-council/wolverhampton","ARGOS RETAIL GROUP","298.67","EIP Locality 7","5310","Educ Trips, Holidays, Outings, Activity","09/09/2016"
"Wolverhampton City Council","http://opendatacommunities.org/id/metropolitan-district-council/wolverhampton","ARGOS RETAIL GROUP","69.99","EIP Locality 7","5310","Educ Trips, Holidays, Outings, Activity","09/09/2016"
"Wolverhampton City Council","http://opendatacommunities.org/id/metropolitan-district-council/wolverhampton","Virgintrains.co.uk","106.00","Planning","4112","Public Transport","09/09/2016"
"Wolverhampton City Council","http://opendatacommunities.org/id/metropolitan-district-council/wolverhampton","ASDA SUPERSTORE","23.00","CIN/CP S17 SW Unit - Area 5","5411","Provisions (Not for resale)","08/09/2016"
"Wolverhampton City Council","http://opendatacommunities.org/id/metropolitan-district-council/wolverhampton","TFM FARM & COUNTRY SUP","81.17","Northicote Farm","5399","Equipment - Purchase","08/09/2016"
"Wolverhampton City Council","http://opendatacommunities.org/id/metropolitan-district-council/wolverhampton","PREMIER INN","421.57","Adoption and Residence Team & Allowances","3811","Accommodation Costs","08/09/2016"
"Wolverhampton City Council","http://opendatacommunities.org/id/metropolitan-district-council/wolverhampton","PREMIER INN","494.10","Adoption and Residence Team & Allowances","3811","Accommodation Costs","08/09/2016"
"Wolverhampton City Council","http://opendatacommunities.org/id/metropolitan-district-council/wolverhampton","WM MORRISONS","7.68","CIN/CP Social Work Unit - Area 6","5411","Comms - Postage","08/09/2016"
"Wolverhampton City Council","http://opendatacommunities.org/id/metropolitan-district-council/wolverhampton","NOTEMACHINE","250.00","CIN/CP S17 SW Unit - Area 6","6011","Financial Assistance In Exceptional Circ","08/09/2016"
"Wolverhampton City Council","http://opendatacommunities.org/id/metropolitan-district-council/wolverhampton","BRITANNIA","148.33","CIN/CP S17 SW Unit - Area 5","7011","Accommodation Costs","08/09/2016"
"Wolverhampton City Council","http://opendatacommunities.org/id/metropolitan-district-council/wolverhampton","NOVOTEL HOTELS","74.17","CIN/CP S17 SW Unit - Area 5","3642","Accommodation Costs","08/09/2016"
"Wolverhampton City Council","http://opendatacommunities.org/id/metropolitan-district-council/wolverhampton","MUSIC WEEK","249.00","Civic Halls Non Direct Management A/C","2741","Publications","08/09/2016"
"Wolverhampton City Council","http://opendatacommunities.org/id/metropolitan-district-council/wolverhampton","LIVEMUSIC.CO.UK","230.00","Civic Halls Non Direct Management A/C","7399","Marketing \ Non-staff advertising","08/09/2016"
"Wolverhampton City Council","http://opendatacommunities.org/id/metropolitan-district-council/wolverhampton","FACEBK 86MZH96C22","6.41","Service Wide","7311","Marketing \ Non-staff advertising","08/09/2016"
"Wolverhampton City Council","http://opendatacommunities.org/id/metropolitan-district-council/wolverhampton","FACEBK 76MZH96C22","394.05","Service Wide","7311","Marketing \ Non-staff advertising","08/09/2016"
"Wolverhampton City Council","http://opendatacommunities.org/id/metropolitan-district-council/wolverhampton","ELECTRICAL CONTRACTORS","80.00","Property Services - Building Maintenance","1731","R&M - Departmental response (external)","08/09/2016"
"Wolverhampton City Council","http://opendatacommunities.org/id/metropolitan-district-council/wolverhampton","BLACK COUNTRY SKIP HIR","138.00","CIN/CP S17 SW Unit - Area 7","7394","Equipment - Purchase","08/09/2016"
"Wolverhampton City Council","http://opendatacommunities.org/id/metropolitan-district-council/wolverhampton","SURVEYMONKEY.COM","249.17","Corporate Policy and Equalities","5968","Subscriptions","08/09/2016"
"Wolverhampton City Council","http://opendatacommunities.org/id/metropolitan-district-council/wolverhampton","PAYPAL  CENTRALCONF","130.00","Central Training","7299","Training Expenses","08/09/2016"
"Wolverhampton City Council","http://opendatacommunities.org/id/metropolitan-district-council/wolverhampton","DVSA","13.00","Fleet Management","9399","MOT & HGV Tests","08/09/2016"
"Wolverhampton City Council","http://opendatacommunities.org/id/metropolitan-district-council/wolverhampton","ASDA SUPERSTORE","11.50","CIN/CP S17 SW Unit - Area 5","5411","Provisions (Not for resale)","08/09/2016"
"Wolverhampton City Council","http://opendatacommunities.org/id/metropolitan-district-council/wolverhampton","WEST COAST TRAINS","125.00","Mental Health Assessment & Care Mgmt","4112","Public Transport","08/09/2016"
"Wolverhampton City Council","http://opendatacommunities.org/id/metropolitan-district-council/wolverhampton","ASDA HOME SHOPPING","-3.87","Ernest Bold Court","5411","Provisions (Not for resale)","08/09/2016"
"Wolverhampton City Council","http://opendatacommunities.org/id/metropolitan-district-council/wolverhampton","PREMIER INN","81.99","Headstart","3811","Services - Supplies & Services to users","08/09/2016"
"Wolverhampton City Council","http://opendatacommunities.org/id/metropolitan-district-council/wolverhampton","WOLVERHAMPTON CC","3.00","Headstart","7523","Parking Fees","08/09/2016"
"Wolverhampton City Council","http://opendatacommunities.org/id/metropolitan-district-council/wolverhampton","WWW.PRINTED4U.CO.U","485.13","Headstart","5943","Stationery","08/09/2016"
"Wolverhampton City Council","http://opendatacommunities.org/id/metropolitan-district-council/wolverhampton","Amazon EU","132.03","Headstart","5969","Equipment - Purchase","08/09/2016"
"Wolverhampton City Council","http://opendatacommunities.org/id/metropolitan-district-council/wolverhampton","WEST COAST TRAINS","71.60","CIN/CP Social Work Unit - Area 5","4112","Public Transport","08/09/2016"
"Wolverhampton City Council","http://opendatacommunities.org/id/metropolitan-district-council/wolverhampton","Trainline.com Ltd","37.55","LAC Team","4112","Public Transport","08/09/2016"
"Wolverhampton City Council","http://opendatacommunities.org/id/metropolitan-district-council/wolverhampton","ARGOS LTD","19.99","Education Catering - General Overheads","5310","Equipment - Purchase","08/09/2016"
"Wolverhampton City Council","http://opendatacommunities.org/id/metropolitan-district-council/wolverhampton","FOOD EVENTS AND THINGS","55.00","Education Catering - General Overheads","7997","Subscriptions","08/09/2016"
"Wolverhampton City Council","http://opendatacommunities.org/id/metropolitan-district-council/wolverhampton","IGLOO SOFTWARE","1667.53","Learning Technologies","7372","Computing - Purchase of Software","08/09/2016"
"Wolverhampton City Council","http://opendatacommunities.org/id/metropolitan-district-council/wolverhampton","B & Q 1243","23.27","Specialist Support Service - North","5211","Equipment - R & M","08/09/2016"
"Wolverhampton City Council","http://opendatacommunities.org/id/metropolitan-district-council/wolverhampton","PC WORLD","41.66","Strategic ICTS (ICT Serv Budget)","5732","Equipment - Purchase","08/09/2016"
"Wolverhampton City Council","http://opendatacommunities.org/id/metropolitan-district-council/wolverhampton","WWW.ISTOCK.COM","260.83","Communications & Marketing - General","5971","Marketing \ Non-staff advertising","08/09/2016"
"Wolverhampton City Council","http://opendatacommunities.org/id/metropolitan-district-council/wolverhampton","WYNNSTAY ARGICULTURAL","158.97","Towers Outdoor Education Centre","5311","Equipment - Purchase","07/09/2016"
"Wolverhampton City Council","http://opendatacommunities.org/id/metropolitan-district-council/wolverhampton","C L JONES LIMITED","451.27","Towers Outdoor Education Centre","5211","Materials","07/09/2016"
"Wolverhampton City Council","http://opendatacommunities.org/id/metropolitan-district-council/wolverhampton","RICHARD WILLIAMS","79.88","Towers Outdoor Education Centre","5211","Materials","07/09/2016"
"Wolverhampton City Council","http://opendatacommunities.org/id/metropolitan-district-council/wolverhampton","HOBBY CRAFT LTD","38.08","Technical Support","5970","Materials","07/09/2016"
"Wolverhampton City Council","http://opendatacommunities.org/id/metropolitan-district-council/wolverhampton","WWW.PANELWAREHOUSE.COM","138.48","Learning Technologies","7399","Equipment - Purchase","07/09/2016"
"Wolverhampton City Council","http://opendatacommunities.org/id/metropolitan-district-council/wolverhampton","HM PASSPORT OFFICE","245.00","LAC Team","9399","Financial Assistance In Exceptional Circ","07/09/2016"
"Wolverhampton City Council","http://opendatacommunities.org/id/metropolitan-district-council/wolverhampton","POST OFFICE COUNTER","32.00","CIN/CP S17 SW Unit - Area 5","9402","Comms - Postage","07/09/2016"
"Wolverhampton City Council","http://opendatacommunities.org/id/metropolitan-district-council/wolverhampton","PO WHITMORE REANS 5293","200.00","CIN/CP S17 SW Unit - Area 5","6011","Financial Assistance In Exceptional Circ","07/09/2016"
"Wolverhampton City Council","http://opendatacommunities.org/id/metropolitan-district-council/wolverhampton","PO WHITMORE REANS 5293","200.00","CIN/CP S17 SW Unit - Area 5","6011","Financial Assistance In Exceptional Circ","07/09/2016"
"Wolverhampton City Council","http://opendatacommunities.org/id/metropolitan-district-council/wolverhampton","GOVKNOW EVENTS LIMITED","150.00","Workforce Development","7399","Training Expenses","07/09/2016"
"Wolverhampton City Council","http://opendatacommunities.org/id/metropolitan-district-council/wolverhampton","SALFORD PROFESSIONAL D","200.00","Central Training","8299","Training Expenses","07/09/2016"
"Wolverhampton City Council","http://opendatacommunities.org/id/metropolitan-district-council/wolverhampton","Amazon EU","32.79","Patching","5969","Equipment - Purchase","07/09/2016"
"Wolverhampton City Council","http://opendatacommunities.org/id/metropolitan-district-council/wolverhampton","Amazon UK Marketplace","3.54","Patching","5942","Materials","07/09/2016"
"Wolverhampton City Council","http://opendatacommunities.org/id/metropolitan-district-council/wolverhampton","WWW.VIKING-DIRECT.CO.U","123.60","Revenues","5111","Stationery","07/09/2016"
"Wolverhampton City Council","http://opendatacommunities.org/id/metropolitan-district-council/wolverhampton","ROYAL MAIL  0845606040","1.50","Revenues","9402","Comms - Postage","07/09/2016"
"Wolverhampton City Council","http://opendatacommunities.org/id/metropolitan-district-council/wolverhampton","TRAINLINE","35.34","Adoption and Residence Team & Allowances","4112","Public Transport","07/09/2016"
"Wolverhampton City Council","http://opendatacommunities.org/id/metropolitan-district-council/wolverhampton","Trainline.com Ltd","595.78","Adoption and Residence Team & Allowances","4112","Public Transport","07/09/2016"
"Wolverhampton City Council","http://opendatacommunities.org/id/metropolitan-district-council/wolverhampton","Amazon EU","8.73","Planning","5969","Equipment - Purchase","07/09/2016"
"Wolverhampton City Council","http://opendatacommunities.org/id/metropolitan-district-council/wolverhampton","EB  SMART CITIES BIRMI","40.00","Service Director City Economy","7399","Conference Expenses","07/09/2016"
"Wolverhampton City Council","http://opendatacommunities.org/id/metropolitan-district-council/wolverhampton","ASDA HOME SHOPPING","119.23","Ernest Bold Court","5411","Provisions (Not for resale)","07/09/2016"
"Wolverhampton City Council","http://opendatacommunities.org/id/metropolitan-district-council/wolverhampton","WOLVERHAMPTON CC","12.50","Headstart","7523","Parking Fees","07/09/2016"
"Wolverhampton City Council","http://opendatacommunities.org/id/metropolitan-district-council/wolverhampton","Trainline.com Ltd","74.56","HR Advice","4112","Public Transport","07/09/2016"
"Wolverhampton City Council","http://opendatacommunities.org/id/metropolitan-district-council/wolverhampton","WWW.BAX-SHOP.CO.UK","143.07","Central Baths","5732","Equipment - Purchase","07/09/2016"
"Wolverhampton City Council","http://opendatacommunities.org/id/metropolitan-district-council/wolverhampton","WWW.JANITORIALSUPPLIES","22.72","Central Baths","7349","Contract Cleaning","07/09/2016"
"Wolverhampton City Council","http://opendatacommunities.org/id/metropolitan-district-council/wolverhampton","LYCO DIRECT LTD","82.95","Central Baths","5722","Equipment - Purchase","07/09/2016"
"Wolverhampton City Council","http://opendatacommunities.org/id/metropolitan-district-council/wolverhampton","WWW.THESAFETYCENTRE.CO","254.38","Central Baths","5231","Materials","07/09/2016"
"Wolverhampton City Council","http://opendatacommunities.org/id/metropolitan-district-council/wolverhampton","SCREWFIX DIRECT LT","8.59","Culwell Street Depot","5211","R&M - Departmental planned (external)","07/09/2016"
"Wolverhampton City Council","http://opendatacommunities.org/id/metropolitan-district-council/wolverhampton","Amazon UK Marketplace","35.48","Contemporary Gallery","5942","Equipment - Purchase","07/09/2016"
"Wolverhampton City Council","http://opendatacommunities.org/id/metropolitan-district-council/wolverhampton","TESCO STORES 5194","273.76","Towers Outdoor Education Centre","5411","Provisions (Not for resale)","07/09/2016"
"Wolverhampton City Council","http://opendatacommunities.org/id/metropolitan-district-council/wolverhampton","HSBC INVOICE FINAN","753.69","Towers Outdoor Education Centre","6012","Laundry Expenses","07/09/2016"
"Wolverhampton City Council","http://opendatacommunities.org/id/metropolitan-district-council/wolverhampton","FUEL CARD SERVICES LTD","158.07","Towers Outdoor Education Centre","7399","Petrol","07/09/2016"
"Wolverhampton City Council","http://opendatacommunities.org/id/metropolitan-district-council/wolverhampton","Trainline.com Ltd","150.10","Delivery & OCE Development","4112","Public Transport","07/09/2016"
"Wolverhampton City Council","http://opendatacommunities.org/id/metropolitan-district-council/wolverhampton","Trainline.com Ltd","254.60","Audit Services","4112","Public Transport","07/09/2016"
"Wolverhampton City Council","http://opendatacommunities.org/id/metropolitan-district-council/wolverhampton","TRAIN FITNESS INTERNAT","198.33","WV Active Business Support","7399","Services - Fees and Charges","07/09/2016"
"Wolverhampton City Council","http://opendatacommunities.org/id/metropolitan-district-council/wolverhampton","ASDA SUPERSTORE","20.25","Learning Technologies","5411","Training Expenses","06/09/2016"
"Wolverhampton City Council","http://opendatacommunities.org/id/metropolitan-district-council/wolverhampton","IMPERIAL WAR MUSEUM","39.50","Art Gallery","7991","Equipment - Purchase","06/09/2016"
"Wolverhampton City Council","http://opendatacommunities.org/id/metropolitan-district-council/wolverhampton","WOLVES CC","88.00","CIN/CP S17 SW Unit - Area 5","9399","Services - Fees and Charges","06/09/2016"
"Wolverhampton City Council","http://opendatacommunities.org/id/metropolitan-district-council/wolverhampton","PEEKS THE EVENT MAKERS","290.99","Christmas Festivities","5947","Equipment - Purchase","06/09/2016"
"Wolverhampton City Council","http://opendatacommunities.org/id/metropolitan-district-council/wolverhampton","TESCO STORES 5503","12.42","Civic Centre Catering","5411","Provisions (Not for resale)","06/09/2016"
"Wolverhampton City Council","http://opendatacommunities.org/id/metropolitan-district-council/wolverhampton","SAINSBURYS 2040","12.60","Civic Centre Catering","5411","Provisions (Not for resale)","06/09/2016"
"Wolverhampton City Council","http://opendatacommunities.org/id/metropolitan-district-council/wolverhampton","POST OFFICE COUNTER","64.00","HR Advice","9402","Comms - Postage","06/09/2016"
"Wolverhampton City Council","http://opendatacommunities.org/id/metropolitan-district-council/wolverhampton","HMCOURTS-SERVICE.G","20.00","Emergency Duty Team","9222","Services - Fees and Charges","06/09/2016"
"Wolverhampton City Council","http://opendatacommunities.org/id/metropolitan-district-council/wolverhampton","ASDA SUPERSTORE","277.64","Upper Pendeford Farm Childrens Home","5411","Provisions (Not for resale)","06/09/2016"
"Wolverhampton City Council","http://opendatacommunities.org/id/metropolitan-district-council/wolverhampton","ATHENA WEMBLEY STU","255.00","LAC Transitions Team","6513","Accommodation Costs","06/09/2016"
"Wolverhampton City Council","http://opendatacommunities.org/id/metropolitan-district-council/wolverhampton","TVLICENSING.CO.UK","0.00","Court of Protection, Funerals Prot Prop","7392","Services - Supplies & Services to users","06/09/2016"
"Wolverhampton City Council","http://opendatacommunities.org/id/metropolitan-district-council/wolverhampton","WICKES BUILDING","54.98","Contemporary Gallery","5211","Materials","06/09/2016"
"Wolverhampton City Council","http://opendatacommunities.org/id/metropolitan-district-council/wolverhampton","BOOKWHEN","9.00","Craftplay","7372","Computing - Purchase of Software","05/09/2016"
"Wolverhampton City Council","http://opendatacommunities.org/id/metropolitan-district-council/wolverhampton","IKEA","24.99","Craftplay","5719","Equipment - Purchase","05/09/2016"
"Wolverhampton City Council","http://opendatacommunities.org/id/metropolitan-district-council/wolverhampton","UK DEED POLL SERVICE L","37.00","LAC Team","7299","Financial Assistance In Exceptional Circ","05/09/2016"
"Wolverhampton City Council","http://opendatacommunities.org/id/metropolitan-district-council/wolverhampton","THE ROYAL HOTEL-M","100.00","LAC Team","7011","Services - Supplies & Services to users","05/09/2016"
"Wolverhampton City Council","http://opendatacommunities.org/id/metropolitan-district-council/wolverhampton","Virgintrains.co.uk","93.90","LAC Team","4112","Public Transport","05/09/2016"
"Wolverhampton City Council","http://opendatacommunities.org/id/metropolitan-district-council/wolverhampton","Virgintrains.co.uk","130.30","Adoption and Residence Team & Allowances","4112","Public Transport","05/09/2016"
"Wolverhampton City Council","http://opendatacommunities.org/id/metropolitan-district-council/wolverhampton","HM PASSPORT OFFICE","46.00","LAC Team","9399","Financial Assistance In Exceptional Circ","05/09/2016"
"Wolverhampton City Council","http://opendatacommunities.org/id/metropolitan-district-council/wolverhampton","HM PASSPORT OFFICE","46.00","LAC Team","9399","Financial Assistance In Exceptional Circ","05/09/2016"
"Wolverhampton City Council","http://opendatacommunities.org/id/metropolitan-district-council/wolverhampton","DYBLES-DOM","270.00","LAC Transitions Team","8999","Accommodation Costs","05/09/2016"
"Wolverhampton City Council","http://opendatacommunities.org/id/metropolitan-district-council/wolverhampton","SAINSBURYS SACAT 2040","8.00","Civic Centre Catering","5411","Provisions (Not for resale)","05/09/2016"
"Wolverhampton City Council","http://opendatacommunities.org/id/metropolitan-district-council/wolverhampton","ASDA SUPERSTORE","41.80","Aldersley Leisure Village Bar","5411","Provisions (Not for resale)","05/09/2016"
"Wolverhampton City Council","http://opendatacommunities.org/id/metropolitan-district-council/wolverhampton","TELFORD OCCUPATIONAL H","120.00","Central Training","7399","Training Expenses","05/09/2016"
"Wolverhampton City Council","http://opendatacommunities.org/id/metropolitan-district-council/wolverhampton","EBUYER (UK) LTD","315.10","Macmillan Welfare Rights","5722","Stationery","05/09/2016"
"Wolverhampton City Council","http://opendatacommunities.org/id/metropolitan-district-council/wolverhampton","WWW.SEVERNTRENTSEARCHE","-88.00","Legal Services","4900","Electricity","05/09/2016"
"Wolverhampton City Council","http://opendatacommunities.org/id/metropolitan-district-council/wolverhampton","T.A. HENN & SON LTD","600.00","Mayoral Expenses","5944","Gratuities","05/09/2016"
"Wolverhampton City Council","http://opendatacommunities.org/id/metropolitan-district-council/wolverhampton","J J RUDELL & CO LT","150.00","Mayoral Expenses","5944","Gratuities","05/09/2016"
"Wolverhampton City Council","http://opendatacommunities.org/id/metropolitan-district-council/wolverhampton","M & M TIMBER","42.15","Direct Schools","7399","Materials","05/09/2016"
"Wolverhampton City Council","http://opendatacommunities.org/id/metropolitan-district-council/wolverhampton","ROYAL MAIL  0845606040","1.50","Revenues","9402","Comms - Postage","05/09/2016"
"Wolverhampton City Council","http://opendatacommunities.org/id/metropolitan-district-council/wolverhampton","Trainline.com Ltd","249.39","Physical & Sensory Disabilities Mgmt","4112","Public Transport","05/09/2016"
"Wolverhampton City Council","http://opendatacommunities.org/id/metropolitan-district-council/wolverhampton","UXPIN.com, +4869493995","92.30","City Direct","7372","Computing - Purchase of Software","05/09/2016"
"Wolverhampton City Council","http://opendatacommunities.org/id/metropolitan-district-council/wolverhampton","CITIZENCARD","25.00","LAC Transitions Team","9399","Client Allowances","05/09/2016"
"Wolverhampton City Council","http://opendatacommunities.org/id/metropolitan-district-council/wolverhampton","PC WORLD","1050.00","Mayoral Expenses","5732","Gratuities","05/09/2016"
"Wolverhampton City Council","http://opendatacommunities.org/id/metropolitan-district-council/wolverhampton","MILLERS JEWELLERS","900.00","Mayoral Expenses","5944","Gratuities","05/09/2016"
"Wolverhampton City Council","http://opendatacommunities.org/id/metropolitan-district-council/wolverhampton","EE LIMITED R501","66.66","Healthy Schools Team","4812","Comms - Mobile Telephones","05/09/2016"
"Wolverhampton City Council","http://opendatacommunities.org/id/metropolitan-district-council/wolverhampton","WEST COAST TRAINS","59.67","Legal Services","4112","Public Transport","05/09/2016"
"Wolverhampton City Council","http://opendatacommunities.org/id/metropolitan-district-council/wolverhampton","FACEBK 2A6TL9EB92","19.30","Communications & Marketing - General","7311","Marketing \ Non-staff advertising","05/09/2016"
"Wolverhampton City Council","http://opendatacommunities.org/id/metropolitan-district-council/wolverhampton","FACEBK Y96TL9EB92","580.74","Communications & Marketing - General","7311","Marketing \ Non-staff advertising","05/09/2016"
"Wolverhampton City Council","http://opendatacommunities.org/id/metropolitan-district-council/wolverhampton","ARGOS RETAIL GROUP","179.99","EIP Locality 8","5310","Grant Payments","05/09/2016"
"Wolverhampton City Council","http://opendatacommunities.org/id/metropolitan-district-council/wolverhampton","ASDA SUPERSTORE","17.36","Headstart","5411","Provisions (Not for resale)","05/09/2016"
"Wolverhampton City Council","http://opendatacommunities.org/id/metropolitan-district-council/wolverhampton","AMAZON UK RETAIL AMAZO","187.40","Headstart","5999","Equipment - Purchase","05/09/2016"
"Wolverhampton City Council","http://opendatacommunities.org/id/metropolitan-district-council/wolverhampton","AMAZON UK RETAIL AMAZO","108.29","Headstart","5999","Equipment - Purchase","05/09/2016"
"Wolverhampton City Council","http://opendatacommunities.org/id/metropolitan-district-council/wolverhampton","ANDERTONS MUSIC","808.00","Headstart","5733","Equipment - Purchase","05/09/2016"
"Wolverhampton City Council","http://opendatacommunities.org/id/metropolitan-district-council/wolverhampton","ITUNES.COM/BILL","149.99","Headstart","5735","Computing - Purchase of Software","05/09/2016"
"Wolverhampton City Council","http://opendatacommunities.org/id/metropolitan-district-council/wolverhampton","ITUNES.COM/BILL","229.99","Headstart","5735","Computing - Purchase of Software","05/09/2016"
"Wolverhampton City Council","http://opendatacommunities.org/id/metropolitan-district-council/wolverhampton","TRELLO","3.88","City Direct","5045","Computing - Purchase of Hardware","05/09/2016"
"Wolverhampton City Council","http://opendatacommunities.org/id/metropolitan-district-council/wolverhampton","PANDA PRESS (STONE) LT","50.00","Education And Access","2741","Publications","05/09/2016"
"Wolverhampton City Council","http://opendatacommunities.org/id/metropolitan-district-council/wolverhampton","SPECIALIST CRAFTS LTD","90.11","Education And Access","5970","Materials","05/09/2016"
"Wolverhampton City Council","http://opendatacommunities.org/id/metropolitan-district-council/wolverhampton","CUMMINGS BROTHERS LOCK","20.83","Head of Service - LAC","7399","R&M - Departmental planned (external)","05/09/2016"
"Wolverhampton City Council","http://opendatacommunities.org/id/metropolitan-district-council/wolverhampton","CUMMINGS BROTHERS LOCK","16.67","Head of Service - LAC","7399","R&M - Departmental planned (external)","05/09/2016"
"Wolverhampton City Council","http://opendatacommunities.org/id/metropolitan-district-council/wolverhampton","CUMMINGS BROTHERS LOCK","5.00","Cleaning of Buildings - General","7399","R&M - Departmental planned (external)","05/09/2016"
"Wolverhampton City Council","http://opendatacommunities.org/id/metropolitan-district-council/wolverhampton","PREMIER INN","430.40","Adoption and Residence Team & Allowances","3811","Services - Supplies & Services to users","05/09/2016"
"Wolverhampton City Council","http://opendatacommunities.org/id/metropolitan-district-council/wolverhampton","PREMIER INN","72.98","Adoption and Residence Team & Allowances","3811","Services - Supplies & Services to users","05/09/2016"
"Wolverhampton City Council","http://opendatacommunities.org/id/metropolitan-district-council/wolverhampton","SCREWFIX DIRECT LT","66.65","Culwell Street Depot","5211","Equipment - Purchase","05/09/2016"
"Wolverhampton City Council","http://opendatacommunities.org/id/metropolitan-district-council/wolverhampton","ASDA SUPERSTORE","89.42","EIP Locality 1","5411","Provisions (Not for resale)","05/09/2016"
"Wolverhampton City Council","http://opendatacommunities.org/id/metropolitan-district-council/wolverhampton","BARCLAYS BANK PLC","16.67","EIP Locality 1","6011","Financial Assistance In Exceptional Circ","05/09/2016"
"Wolverhampton City Council","http://opendatacommunities.org/id/metropolitan-district-council/wolverhampton","AUDIOVISUAL ONLINE","149.99","Technical Material","5732","Equipment - Purchase","05/09/2016"
"Wolverhampton City Council","http://opendatacommunities.org/id/metropolitan-district-council/wolverhampton","123-REG.CO.UK","125.82","Technical Support","4816","Computing - Purchase of Software","02/09/2016"
"Wolverhampton City Council","http://opendatacommunities.org/id/metropolitan-district-council/wolverhampton","WICKES","19.95","Community Enablement","5211","Equipment - R & M","02/09/2016"
"Wolverhampton City Council","http://opendatacommunities.org/id/metropolitan-district-council/wolverhampton","AMAZON UK RETAIL AMAZO","69.93","Environmental Health - Pub Prot - Gen","5999","Equipment - Purchase","02/09/2016"
"Wolverhampton City Council","http://opendatacommunities.org/id/metropolitan-district-council/wolverhampton","Virgintrains.co.uk","169.10","Environmental Health - Pub Prot - Gen","4112","Services - Fees and Charges","02/09/2016"
"Wolverhampton City Council","http://opendatacommunities.org/id/metropolitan-district-council/wolverhampton","LOYD WEDNESFIELD WOLVE","150.00","Duke Street Bungalows","6011","Financial Assistance In Exceptional Circ","02/09/2016"
"Wolverhampton City Council","http://opendatacommunities.org/id/metropolitan-district-council/wolverhampton","LOYD WEDNESFIELD WOLVE","150.00","Duke Street Bungalows","6011","Public Transport","02/09/2016"
"Wolverhampton City Council","http://opendatacommunities.org/id/metropolitan-district-council/wolverhampton","FACEBK HGQWD9NC22","13.09","Service Wide","7311","Marketing \ Non-staff advertising","02/09/2016"
"Wolverhampton City Council","http://opendatacommunities.org/id/metropolitan-district-council/wolverhampton","FACEBK GGQWD9NC22","271.64","Service Wide","7311","Marketing \ Non-staff advertising","02/09/2016"
"Wolverhampton City Council","http://opendatacommunities.org/id/metropolitan-district-council/wolverhampton","AMAZON UK RETAIL AMAZO","60.27","Strategic ICTS (ICT Serv Budget)","5999","Equipment - Purchase","02/09/2016"
"Wolverhampton City Council","http://opendatacommunities.org/id/metropolitan-district-council/wolverhampton","AMAZON UK RETAIL AMAZO","52.73","Strategic ICTS (ICT Serv Budget)","5999","Equipment - Purchase","02/09/2016"
"Wolverhampton City Council","http://opendatacommunities.org/id/metropolitan-district-council/wolverhampton","AMAZON UK RETAIL AMAZO","60.27","Strategic ICTS (ICT Serv Budget)","5999","Computing - Purchase of Hardware","02/09/2016"
"Wolverhampton City Council","http://opendatacommunities.org/id/metropolitan-district-council/wolverhampton","CORPORATE INSIGNIA LTD","-95.55","WV Active Business Support","5943","Clothing / Uniforms","02/09/2016"
"Wolverhampton City Council","http://opendatacommunities.org/id/metropolitan-district-council/wolverhampton","Amazon EU","28.12","Bert Williams Leisure Centre","5969","Equipment - Purchase","02/09/2016"
"Wolverhampton City Council","http://opendatacommunities.org/id/metropolitan-district-council/wolverhampton","CORPORATE INSIGNIA LTD","82.75","WV Active Business Support","5943","Clothing / Uniforms","02/09/2016"
"Wolverhampton City Council","http://opendatacommunities.org/id/metropolitan-district-council/wolverhampton","CORPORATE INSIGNIA LTD","95.55","WV Active Business Support","5943","Clothing / Uniforms","02/09/2016"
"Wolverhampton City Council","http://opendatacommunities.org/id/metropolitan-district-council/wolverhampton","PAYPAL  FRG LTD","240.00","Intensive Family Support Team","8299","Training Expenses","02/09/2016"
"Wolverhampton City Council","http://opendatacommunities.org/id/metropolitan-district-council/wolverhampton","SUN X (UK) LIMITED","1924.02","Artist Rooms - NPO ACE WAG","5714","Equipment - Purchase","02/09/2016"
"Wolverhampton City Council","http://opendatacommunities.org/id/metropolitan-district-council/wolverhampton","Amazon UK Marketplace","10.73","Central Baths","5942","Books","02/09/2016"
"Wolverhampton City Council","http://opendatacommunities.org/id/metropolitan-district-council/wolverhampton","AMAZON UK RETAIL AMAZO","13.45","EIP Locality 1","5999","Equipment - Purchase","02/09/2016"
"Wolverhampton City Council","http://opendatacommunities.org/id/metropolitan-district-council/wolverhampton","WWW.WILMINGTON.CO.","150.00","Central Training","8699","Training Expenses","02/09/2016"
"Wolverhampton City Council","http://opendatacommunities.org/id/metropolitan-district-council/wolverhampton","ASDA SUPERSTORE","11.75","Mayoral Expenses","5411","Hospitality","02/09/2016"
"Wolverhampton City Council","http://opendatacommunities.org/id/metropolitan-district-council/wolverhampton","WWW.VKF-RENZEL.CO.","106.06","Art Gallery","5111","Stationery","02/09/2016"
"Wolverhampton City Council","http://opendatacommunities.org/id/metropolitan-district-council/wolverhampton","Virgintrains.co.uk","191.10","Planning","4112","Public Transport","02/09/2016"
"Wolverhampton City Council","http://opendatacommunities.org/id/metropolitan-district-council/wolverhampton","Amazon UK Marketplace","4.49","EIP Locality 1","5942","Equipment - Purchase","02/09/2016"
"Wolverhampton City Council","http://opendatacommunities.org/id/metropolitan-district-council/wolverhampton","PO WILLENHALL RD 5497","30.00","EIP Locality 1","6011","Financial Assistance In Exceptional Circ","02/09/2016"
"Wolverhampton City Council","http://opendatacommunities.org/id/metropolitan-district-council/wolverhampton","Amazon UK Marketplace","11.66","EIP Locality 2","5942","Books","02/09/2016"
"Wolverhampton City Council","http://opendatacommunities.org/id/metropolitan-district-council/wolverhampton","WWW.PETERTYSON.CO.UK","183.25","Technical Material","5732","Equipment - Purchase","02/09/2016"
"Wolverhampton City Council","http://opendatacommunities.org/id/metropolitan-district-council/wolverhampton","WWW.ALLPURPOSELTD.CO.U","78.36","Central Baths","2842","Cleaning Supplies and Materials","01/09/2016"
"Wolverhampton City Council","http://opendatacommunities.org/id/metropolitan-district-council/wolverhampton","HUGHES","416.67","LAC Transitions Team","5732","Client Allowances","01/09/2016"
"Wolverhampton City Council","http://opendatacommunities.org/id/metropolitan-district-council/wolverhampton","POST OFFICE COUNTER","58.75","LAC Team","9402","Comms - Postage","01/09/2016"
"Wolverhampton City Council","http://opendatacommunities.org/id/metropolitan-district-council/wolverhampton","POST OFFICE COUNTER","58.75","LAC Team","9402","Comms - Postage","01/09/2016"
"Wolverhampton City Council","http://opendatacommunities.org/id/metropolitan-district-council/wolverhampton","123-REG.CO.UK","27.96","Technical Support","4816","Computing - Purchase of Software","01/09/2016"
"Wolverhampton City Council","http://opendatacommunities.org/id/metropolitan-district-council/wolverhampton","WICKES","22.89","Community Enablement","5211","Equipment - R & M","01/09/2016"
"Wolverhampton City Council","http://opendatacommunities.org/id/metropolitan-district-council/wolverhampton","Amazon EU","100.49","Education And Access","5969","Books","01/09/2016"
"Wolverhampton City Council","http://opendatacommunities.org/id/metropolitan-district-council/wolverhampton","Amazon EU","25.93","Education And Access","5969","Books","01/09/2016"
"Wolverhampton City Council","http://opendatacommunities.org/id/metropolitan-district-council/wolverhampton","CARESHOP","149.46","Specialist Support Service - North","5999","Cleaning Supplies and Materials","01/09/2016"
"Wolverhampton City Council","http://opendatacommunities.org/id/metropolitan-district-council/wolverhampton","FACEBK T5T9A9AF92","426.35","Civic Halls Non Direct Management A/C","7311","Marketing \ Non-staff advertising","01/09/2016"
"Wolverhampton City Council","http://opendatacommunities.org/id/metropolitan-district-council/wolverhampton","SEVERN TRENT WATER","17.35","CIN/CP S17 SW Unit - Area 4","4900","Electricity","01/09/2016"
"Wolverhampton City Council","http://opendatacommunities.org/id/metropolitan-district-council/wolverhampton","WOLVES CC","80.00","CIN/CP S17 SW Unit - Area 4","9399","Services - Fees and Charges","01/09/2016"
"Wolverhampton City Council","http://opendatacommunities.org/id/metropolitan-district-council/wolverhampton","Amazon EU","24.40","Safeguarding Admin Resource","5969","Equipment - Purchase","01/09/2016"
"Wolverhampton City Council","http://opendatacommunities.org/id/metropolitan-district-council/wolverhampton","Amazon EU","52.73","Strategic ICTS (ICT Serv Budget)","5969","Equipment - Purchase","01/09/2016"
"Wolverhampton City Council","http://opendatacommunities.org/id/metropolitan-district-council/wolverhampton","FACEBK 3SJTD9JA82","380.42","Communications & Marketing - General","7311","Marketing \ Non-staff advertising","01/09/2016"
"Wolverhampton City Council","http://opendatacommunities.org/id/metropolitan-district-council/wolverhampton","FACEBK 9ALZ79JB92","208.14","Communications & Marketing - General","7311","Marketing \ Non-staff advertising","01/09/2016"
"Wolverhampton City Council","http://opendatacommunities.org/id/metropolitan-district-council/wolverhampton","FACEBK AALZ79JB92","16.19","Communications & Marketing - General","7311","Marketing \ Non-staff advertising","01/09/2016"
"Wolverhampton City Council","http://opendatacommunities.org/id/metropolitan-district-council/wolverhampton","ARGOS RETAIL GROUP","206.99","EIP Locality 8","5310","Grant Payments","01/09/2016"
"Wolverhampton City Council","http://opendatacommunities.org/id/metropolitan-district-council/wolverhampton","LOYD WEDNESFIELD WOLVE","80.00","EIP Locality 8","6011","Financial Assistance In Exceptional Circ","01/09/2016"
"Wolverhampton City Council","http://opendatacommunities.org/id/metropolitan-district-council/wolverhampton","JONES SKIP HIRE (WOLVE","175.10","EIP Locality 1","7399","Equipment - Purchase","01/09/2016"
"Wolverhampton City Council","http://opendatacommunities.org/id/metropolitan-district-council/wolverhampton","WICKES","9.98","Central Baths","5211","Materials","01/09/2016"
"Wolverhampton City Council","http://opendatacommunities.org/id/metropolitan-district-council/wolverhampton","UPPAL SWEET CENTRE","31.25","Mayoral Expenses","5813","Hospitality","01/09/2016"
"Wolverhampton City Council","http://opendatacommunities.org/id/metropolitan-district-council/wolverhampton","CT WOLVERHAMPTON","67.50","CIN/CP S17 SW Unit - Area 1","8398","Services - Supplies & Services to users","01/09/2016"
"Wolverhampton City Council","http://opendatacommunities.org/id/metropolitan-district-council/wolverhampton","ARGOS LTD","99.99","Cemeteries","5310","Equipment - Purchase","01/09/2016"
